Workbook

Sheet Rückstellungen
A1: Vorlage zur Anpassung der Rückstellungen zum RA | O1: Rolle HBH hat Berechtigung für /CUERP/FIFLEX
A2: 1. Daten aus FAGLB03 in orange Felder kopieren | B2: 2. Daten in allen grünen Felder anpassen | I2: 3. Button klicken um CSV zu erstellen | O2: 4. Verbuchung: | P2: /CUERP/FIFLEX | Q2: Variante: RUECKSTELLUNG holen (CSV-Datei im 1. Feld auswählen) - F8 - Meldung: FLEX_THOHAR not created bestätigen und F3 (bis zur Einstiegsmaske zurück) Kontrolle über BTC Mappen (siehe rechts) oder FB03 Belegliste
A3: BUK | B3: XXXX
A4: Daten aus GeOrg FAGLB03 Variante /Rückstellungen | D4: Sollstand eintragen | G4: FB50 | I4: UB RA Rückstellungen | L4: Datum | M4: 2024-12-31 | O4: Grüne Positionen in die FB50 kopieren | T4: Haben = Minusbetrag
A5: Layout /Rückstell ins Excel (oranger Bereich unten) kopieren | I5: Belegart | J5: LG | O5: Gegenpositionen | T5: Soll = Plusbetrag
A6: SK | B6: Fonds | C6: Betrag (Minus) | D6: Stand Soll (Plus) | E6: Differenz | G6: SK | I6: S/H | J6: Betrag | L6: Text | M6: KSt | O6: SK | Q6: S/H | R6: Betrag | T6: Text | U6: KSt
A7: 384000 | B7: 10000 | C7: -181200 | E7: =C7+D7 -> -181200 | G7: =A7 -> 384000 | I7: =IF(E7>0,"Haben","Soll") -> Soll | J7: =IF(I7="Haben",IF(E7>0,E7,E7*-1)*-1,IF(E7>0,E7,E7*-1)) -> 181200 | L7: ="UB RA "&VLOOKUP(G7,SK_Mapping,4,FALSE) -> UB RA Jubiläum | M7: =B7 -> 10000 | O7: =IF(E7>0,VLOOKUP(G7,SK_Mapping,2,FALSE),VLOOKUP(G7,SK_Mapping,3,FALSE)) -> 817500 | Q7: =IF(I7="Haben","Soll","Haben") -> Haben | R7: =J7*-1 -> -181200 | T7: =L7 -> UB RA Jubiläum | U7: =M7 -> 10000
A8: 384000 | B8: 22000 | C8: -20700 | E8: =C8+D8 -> -20700 | G8: =A8 -> 384000 | I8: =IF(E8>0,"Haben","Soll") -> Soll | J8: =IF(I8="Haben",IF(E8>0,E8,E8*-1)*-1,IF(E8>0,E8,E8*-1)) -> 20700 | L8: UB RA Jubiläum | M8: =B8 -> 22000 | O8: 817500 | Q8: =IF(I8="Haben","Soll","Haben") -> Haben | R8: =J8*-1 -> -20700 | T8: =L8 -> UB RA Jubiläum | U8: =M8 -> 22000
A9: 384000 | B9: 30000 | C9: -132100 | E9: -132100 | G9: 384000 | I9: Soll | J9: 132100 | L9: UB RA Jubiläum | M9: 30000 | O9: 817500 | Q9: Haben | R9: -132100 | T9: UB RA Jubiläum | U9: 30000
A10: 384000 | B10: 163100 | C10: -20100 | E10: -20100 | G10: 384000 | I10: Soll | J10: 20100 | L10: UB RA Jubiläum | M10: 163100 | O10: 817500 | Q10: Haben | R10: -20100 | T10: UB RA Jubiläum | U10: 163100
A11: 384000 | B11: 211100 | C11: -10440.81 | E11: -10440.81 | G11: 384000 | I11: Soll | J11: 10440.81 | L11: UB RA Jubiläum | M11: 211100 | O11: 817500 | Q11: Haben | R11: -10440.81 | T11: UB RA Jubiläum | U11: 211100
A12: 384000 | B12: 211110 | C12: -8959.19 | E12: =C12+D12 -> -8959.19 | G12: =A12 -> 384000 | I12: =IF(E12>0,"Haben","Soll") -> Soll | J12: =IF(I12="Haben",IF(E12>0,E12,E12*-1)*-1,IF(E12>0,E12,E12*-1)) -> 8959.19 | L12: ="UB RA "&VLOOKUP(G12,SK_Mapping,4,FALSE) -> UB RA Jubiläum | M12: =B12 -> 211110 | O12: =IF(E12>0,VLOOKUP(G12,SK_Mapping,2,FALSE),VLOOKUP(G12,SK_Mapping,3,FALSE)) -> 817500 | Q12: =IF(I12="Haben","Soll","Haben") -> Haben | R12: =J12*-1 -> -8959.19 | T12: =L12 -> UB RA Jubiläum | U12: =M12 -> 211110
A13: 384000 | B13: 211300 | C13: 3299.78 | E13: 3299.78 | G13: 384000 | I13: Haben | J13: -3299.78 | L13: UB RA Jubiläum | M13: 211300 | O13: 592000 | Q13: Soll | R13: 3299.78 | T13: UB RA Jubiläum | U13: 211300
A14: 384000 | B14: 211310 | C14: -3299.78 | E14: -3299.78 | G14: 384000 | I14: Soll | J14: 3299.78 | L14: UB RA Jubiläum | M14: 211310 | O14: 817500 | Q14: Haben | R14: -3299.78 | T14: UB RA Jubiläum | U14: 211310
A15: 384000 | B15: 211400 | C15: -12507.28 | E15: -12507.28 | G15: 384000 | I15: Soll | J15: 12507.28 | L15: UB RA Jubiläum | M15: 211400 | O15: 817500 | Q15: Haben | R15: -12507.28 | T15: UB RA Jubiläum | U15: 211400
A16: 384000 | B16: 211410 | C16: -2092.72 | E16: -2092.72 | G16: 384000 | I16: Soll | J16: 2092.72 | L16: UB RA Jubiläum | M16: 211410 | O16: 817500 | Q16: Haben | R16: -2092.72 | T16: UB RA Jubiläum | U16: 211410
E17: 0 | G17: 0 | I17: Soll | J17: 0 | M17: 0 | Q17: Haben | R17: 0 | U17: 0
E18: 0 | G18: 0 | I18: Soll | J18: 0 | M18: 0 | Q18: Haben | R18: 0 | U18: 0
E19: 0 | G19: 0 | I19: Soll | J19: 0 | M19: 0 | Q19: Haben | R19: 0 | U19: 0
E20: 0 | G20: 0 | I20: Soll | J20: 0 | M20: 0 | Q20: Haben | R20: 0 | U20: 0
E21: 0 | G21: 0 | I21: Soll | J21: 0 | M21: 0 | Q21: Haben | R21: 0 | U21: 0
E22: 0 | G22: 0 | I22: Soll | J22: 0 | M22: 0 | Q22: Haben | R22: 0 | U22: 0
E23: 0 | G23: 0 | I23: Soll | J23: 0 | M23: 0 | Q23: Haben | R23: 0 | U23: 0
E24: 0 | G24: 0 | I24: Soll | J24: 0 | M24: 0 | Q24: Haben | R24: 0 | U24: 0
E25: 0 | G25: 0 | I25: Soll | J25: 0 | M25: 0 | Q25: Haben | R25: 0 | U25: 0
E26: 0 | G26: 0 | I26: Soll | J26: 0 | M26: 0 | Q26: Haben | R26: 0 | U26: 0
E27: 0 | G27: 0 | I27: Soll | J27: 0 | M27: 0 | Q27: Haben | R27: 0 | U27: 0
E28: 0 | G28: 0 | I28: Soll | J28: 0 | M28: 0 | Q28: Haben | R28: 0 | U28: 0
E29: 0 | G29: 0 | I29: Soll | J29: 0 | M29: 0 | Q29: Haben | R29: 0 | U29: 0
E30: 0 | G30: 0 | I30: Soll | J30: 0 | M30: 0 | Q30: Haben | R30: 0 | U30: 0
E31: 0 | G31: 0 | I31: Soll | J31: 0 | M31: 0 | Q31: Haben | R31: 0 | U31: 0
E32: 0 | G32: 0 | I32: Soll | J32: 0 | M32: 0 | Q32: Haben | R32: 0 | U32: 0
E33: 0 | G33: 0 | I33: Soll | J33: 0 | M33: 0 | Q33: Haben | R33: 0 | U33: 0
E34: 0 | G34: 0 | I34: Soll | J34: 0 | M34: 0 | Q34: Haben | R34: 0 | U34: 0
E35: 0 | G35: 0 | I35: Soll | J35: 0 | M35: 0 | Q35: Haben | R35: 0 | U35: 0
E36: 0 | G36: 0 | I36: Soll | J36: 0 | M36: 0 | Q36: Haben | R36: 0 | U36: 0
E37: 0 | G37: 0 | I37: Soll | J37: 0 | M37: 0 | Q37: Haben | R37: 0 | U37: 0
E38: 0 | G38: 0 | I38: Soll | J38: 0 | M38: 0 | Q38: Haben | R38: 0 | U38: 0
E39: 0 | G39: 0 | I39: Soll | J39: 0 | M39: 0 | Q39: Haben | R39: 0 | U39: 0
E40: 0 | G40: 0 | I40: Soll | J40: 0 | M40: 0 | Q40: Haben | R40: 0 | U40: 0
E41: 0 | G41: 0 | I41: Soll | J41: 0 | M41: 0 | Q41: Haben | R41: 0 | U41: 0
E42: 0 | G42: 0 | I42: Soll | J42: 0 | M42: 0 | Q42: Haben | R42: 0 | U42: 0
E43: 0 | G43: 0 | I43: Soll | J43: 0 | M43: 0 | Q43: Haben | R43: 0 | U43: 0
E44: 0 | G44: 0 | I44: Soll | J44: 0 | M44: 0 | Q44: Haben | R44: 0 | U44: 0
E45: 0 | G45: 0 | I45: Soll | J45: 0 | M45: 0 | Q45: Haben | R45: 0 | U45: 0
E46: 0 | G46: 0 | I46: Soll | J46: 0 | M46: 0 | Q46: Haben | R46: 0 | U46: 0
E47: 0 | G47: 0 | I47: Soll | J47: 0 | M47: 0 | Q47: Haben | R47: 0 | U47: 0
E48: 0 | G48: 0 | I48: Soll | J48: 0 | M48: 0 | Q48: Haben | R48: 0 | U48: 0
E49: 0 | G49: 0 | I49: Soll | J49: 0 | M49: 0 | Q49: Haben | R49: 0 | U49: 0
E50: 0 | G50: 0 | I50: Soll | J50: 0 | M50: 0 | Q50: Haben | R50: 0 | U50: 0
E51: 0 | G51: 0 | I51: Soll | J51: 0 | M51: 0 | Q51: Haben | R51: 0 | U51: 0
E52: 0 | G52: 0 | I52: Soll | J52: 0 | M52: 0 | Q52: Haben | R52: 0 | U52: 0
E53: 0 | G53: 0 | I53: Soll | J53: 0 | M53: 0 | Q53: Haben | R53: 0 | U53: 0
E54: 0 | G54: 0 | I54: Soll | J54: 0 | M54: 0 | Q54: Haben | R54: 0 | U54: 0
E55: 0 | G55: 0 | I55: Soll | J55: 0 | M55: 0 | Q55: Haben | R55: 0 | U55: 0
E56: 0 | G56: 0 | I56: Soll | J56: 0 | M56: 0 | Q56: Haben | R56: 0 | U56: 0
E57: 0 | G57: 0 | I57: Soll | J57: 0 | M57: 0 | Q57: Haben | R57: 0 | U57: 0
E58: 0 | G58: 0 | I58: Soll | J58: 0 | M58: 0 | Q58: Haben | R58: 0 | U58: 0
E59: 0 | G59: 0 | I59: Soll | J59: 0 | M59: 0 | Q59: Haben | R59: 0 | U59: 0
E60: 0 | G60: 0 | I60: Soll | J60: 0 | M60: 0 | Q60: Haben | R60: 0 | U60: 0
E61: 0 | G61: 0 | I61: Soll | J61: 0 | M61: 0 | Q61: Haben | R61: 0 | U61: 0
E62: 0 | G62: 0 | I62: Soll | J62: 0 | M62: 0 | Q62: Haben | R62: 0 | U62: 0
E63: 0 | G63: 0 | I63: Soll | J63: 0 | M63: 0 | Q63: Haben | R63: 0 | U63: 0
E64: 0 | G64: 0 | I64: Soll | J64: 0 | M64: 0 | Q64: Haben | R64: 0 | U64: 0
E65: 0 | G65: 0 | I65: Soll | J65: 0 | M65: 0 | Q65: Haben | R65: 0 | U65: 0
E66: 0 | G66: 0 | I66: Soll | J66: 0 | M66: 0 | Q66: Haben | R66: 0 | U66: 0
E67: 0 | G67: 0 | I67: Soll | J67: 0 | M67: 0 | Q67: Haben | R67: 0 | U67: 0
E68: 0 | G68: 0 | I68: Soll | J68: 0 | M68: 0 | Q68: Haben | R68: 0 | U68: 0
E69: 0 | G69: 0 | I69: Soll | J69: 0 | M69: 0 | Q69: Haben | R69: 0 | U69: 0
E70: 0 | G70: 0 | I70: Soll | J70: 0 | M70: 0 | Q70: Haben | R70: 0 | U70: 0
E71: 0 | G71: 0 | I71: Soll | J71: 0 | M71: 0 | Q71: Haben | R71: 0 | U71: 0
E72: 0 | G72: 0 | I72: Soll | J72: 0 | M72: 0 | Q72: Haben | R72: 0 | U72: 0
E73: 0 | G73: 0 | I73: Soll | J73: 0 | M73: 0 | Q73: Haben | R73: 0 | U73: 0
E74: 0 | G74: 0 | I74: Soll | J74: 0 | M74: 0 | Q74: Haben | R74: 0 | U74: 0
E75: 0 | G75: 0 | I75: Soll | J75: 0 | M75: 0 | Q75: Haben | R75: 0 | U75: 0
E76: =C76+D76 -> 0 | G76: =A76 -> 0 | I76: =IF(E76>0,"Haben","Soll") -> Soll | J76: =IF(I76="Haben",IF(E76>0,E76,E76*-1)*-1,IF(E76>0,E76,E76*-1)) -> 0 | L76: ="UB RA "&VLOOKUP(G76,SK_Mapping,4,FALSE) ->  | M76: =B76 -> 0 | O76: =IF(E76>0,VLOOKUP(G76,SK_Mapping,2,FALSE),VLOOKUP(G76,SK_Mapping,3,FALSE)) ->  | Q76: =IF(I76="Haben","Soll","Haben") -> Haben | R76: =J76*-1 -> 0 | T76: =L76 ->  | U76: =M76 -> 0
E77: 0 | G77: 0 | I77: Soll | J77: 0 | M77: 0 | Q77: Haben | R77: 0 | U77: 0
E78: 0 | G78: 0 | I78: Soll | J78: 0 | M78: 0 | Q78: Haben | R78: 0 | U78: 0
E79: 0 | G79: 0 | I79: Soll | J79: 0 | M79: 0 | Q79: Haben | R79: 0 | U79: 0
E80: 0 | G80: 0 | I80: Soll | J80: 0 | M80: 0 | Q80: Haben | R80: 0 | U80: 0
E81: 0 | G81: 0 | I81: Soll | J81: 0 | M81: 0 | Q81: Haben | R81: 0 | U81: 0
E82: 0 | G82: 0 | I82: Soll | J82: 0 | M82: 0 | Q82: Haben | R82: 0 | U82: 0
E83: 0 | G83: 0 | I83: Soll | J83: 0 | M83: 0 | Q83: Haben | R83: 0 | U83: 0
E84: 0 | G84: 0 | I84: Soll | J84: 0 | M84: 0 | Q84: Haben | R84: 0 | U84: 0
E85: 0 | G85: 0 | I85: Soll | J85: 0 | M85: 0 | Q85: Haben | R85: 0 | U85: 0
E86: 0 | G86: 0 | I86: Soll | J86: 0 | M86: 0 | Q86: Haben | R86: 0 | U86: 0
E87: 0 | G87: 0 | I87: Soll | J87: 0 | M87: 0 | Q87: Haben | R87: 0 | U87: 0
E88: 0 | G88: 0 | I88: Soll | J88: 0 | M88: 0 | Q88: Haben | R88: 0 | U88: 0
E89: 0 | G89: 0 | I89: Soll | J89: 0 | M89: 0 | Q89: Haben | R89: 0 | U89: 0
E90: 0 | G90: 0 | I90: Soll | J90: 0 | M90: 0 | Q90: Haben | R90: 0 | U90: 0
E91: 0 | G91: 0 | I91: Soll | J91: 0 | M91: 0 | Q91: Haben | R91: 0 | U91: 0
E92: 0 | G92: 0 | I92: Soll | J92: 0 | M92: 0 | Q92: Haben | R92: 0 | U92: 0
E93: 0 | G93: 0 | I93: Soll | J93: 0 | M93: 0 | Q93: Haben | R93: 0 | U93: 0
E94: 0 | G94: 0 | I94: Soll | J94: 0 | M94: 0 | Q94: Haben | R94: 0 | U94: 0
E95: 0 | G95: 0 | I95: Soll | J95: 0 | M95: 0 | Q95: Haben | R95: 0 | U95: 0
E96: 0 | G96: 0 | I96: Soll | J96: 0 | M96: 0 | Q96: Haben | R96: 0 | U96: 0
E97: 0 | G97: 0 | I97: Soll | J97: 0 | M97: 0 | Q97: Haben | R97: 0 | U97: 0
E98: 0 | G98: 0 | I98: Soll | J98: 0 | M98: 0 | Q98: Haben | R98: 0 | U98: 0
E99: 0 | G99: 0 | I99: Soll | J99: 0 | M99: 0 | Q99: Haben | R99: 0 | U99: 0
E100: 0 | G100: 0 | I100: Soll | J100: 0 | M100: 0 | Q100: Haben | R100: 0 | U100: 0
E101: 0 | G101: 0 | I101: Soll | J101: 0 | M101: 0 | Q101: Haben | R101: 0 | U101: 0
E102: 0 | G102: 0 | I102: Soll | J102: 0 | M102: 0 | Q102: Haben | R102: 0 | U102: 0
E103: 0 | G103: 0 | I103: Soll | J103: 0 | M103: 0 | Q103: Haben | R103: 0 | U103: 0
E104: 0 | G104: 0 | I104: Soll | J104: 0 | M104: 0 | Q104: Haben | R104: 0 | U104: 0
E105: 0 | G105: 0 | I105: Soll | J105: 0 | M105: 0 | Q105: Haben | R105: 0 | U105: 0
E106: 0 | G106: 0 | I106: Soll | J106: 0 | M106: 0 | Q106: Haben | R106: 0 | U106: 0
E107: 0 | G107: 0 | I107: Soll | J107: 0 | M107: 0 | Q107: Haben | R107: 0 | U107: 0

Sheet Mapping
A1: 381000 | B1: 593000 | C1: 817200 | D1: Urlaub
A2: 383000 | B2: 591000 | C2: 817400 | D2: Abfertigung
A3: 384000 | B3: 592000 | C3: 817500 | D3: Jubiläum | F3: Für Budget kommen die Werte aus dem PWHR (1.592000 /2.817500)

Sheet SAKO_ALG
A1: Buchungskreis/BUKRS | C1: Belegart/BLART | D1: Steuer rechnen/XMWST | F1: Datum/BUDAT | I1: Belegkopftext/BKTXT | J1: Konto/NEWKO | K1: BS | L1: Betrag/WRBTR | M1: Text/SGTXT | N1: Steuerkennzeichen/MWSKZ | O1: Kostenstelle/KOSTL | P1: Auftrag/AUFNR
A2: =Rückstellungen!$B$3 -> XXXX | C2: =Rückstellungen!$J$5 -> LG | F2: =Rückstellungen!$M$4 -> 2024-12-31 | I2: =Rückstellungen!$I$4 -> UB RA Rückstellungen | J2: =Rückstellungen!G7 -> 384000 | K2: =IF(Rückstellungen!I7="Haben",50,40) -> 40 | L2: =IF(Rückstellungen!I7="Haben",Rückstellungen!J7*-1,Rückstellungen!J7) -> 181200 | M2: =Rückstellungen!L7 -> UB RA Jubiläum | O2: =Rückstellungen!M7 -> 10000
A3: =Rückstellungen!$B$3 -> XXXX | C3: =Rückstellungen!$J$5 -> LG | F3: =Rückstellungen!$M$4 -> 2024-12-31 | I3: =Rückstellungen!$I$4 -> UB RA Rückstellungen | J3: =Rückstellungen!G8 -> 384000 | K3: =IF(Rückstellungen!I8="Haben",50,40) -> 40 | L3: =IF(Rückstellungen!I8="Haben",Rückstellungen!J8*-1,Rückstellungen!J8) -> 20700 | M3: =Rückstellungen!L8 -> UB RA Jubiläum | O3: =Rückstellungen!M8 -> 22000
A4: =Rückstellungen!$B$3 -> XXXX | C4: =Rückstellungen!$J$5 -> LG | F4: =Rückstellungen!$M$4 -> 2024-12-31 | I4: =Rückstellungen!$I$4 -> UB RA Rückstellungen | J4: =Rückstellungen!G9 -> 384000 | K4: =IF(Rückstellungen!I9="Haben",50,40) -> 40 | L4: =IF(Rückstellungen!I9="Haben",Rückstellungen!J9*-1,Rückstellungen!J9) -> 132100 | M4: =Rückstellungen!L9 -> UB RA Jubiläum | O4: =Rückstellungen!M9 -> 30000
A5: =Rückstellungen!$B$3 -> XXXX | C5: =Rückstellungen!$J$5 -> LG | F5: =Rückstellungen!$M$4 -> 2024-12-31 | I5: =Rückstellungen!$I$4 -> UB RA Rückstellungen | J5: =Rückstellungen!G10 -> 384000 | K5: =IF(Rückstellungen!I10="Haben",50,40) -> 40 | L5: =IF(Rückstellungen!I10="Haben",Rückstellungen!J10*-1,Rückstellungen!J10) -> 20100 | M5: =Rückstellungen!L10 -> UB RA Jubiläum | O5: =Rückstellungen!M10 -> 163100
A6: =Rückstellungen!$B$3 -> XXXX | C6: =Rückstellungen!$J$5 -> LG | F6: =Rückstellungen!$M$4 -> 2024-12-31 | I6: =Rückstellungen!$I$4 -> UB RA Rückstellungen | J6: =Rückstellungen!G11 -> 384000 | K6: =IF(Rückstellungen!I11="Haben",50,40) -> 40 | L6: =IF(Rückstellungen!I11="Haben",Rückstellungen!J11*-1,Rückstellungen!J11) -> 10440.81 | M6: =Rückstellungen!L11 -> UB RA Jubiläum | O6: =Rückstellungen!M11 -> 211100
A7: =Rückstellungen!$B$3 -> XXXX | C7: =Rückstellungen!$J$5 -> LG | F7: =Rückstellungen!$M$4 -> 2024-12-31 | I7: =Rückstellungen!$I$4 -> UB RA Rückstellungen | J7: =Rückstellungen!G12 -> 384000 | K7: =IF(Rückstellungen!I12="Haben",50,40) -> 40 | L7: =IF(Rückstellungen!I12="Haben",Rückstellungen!J12*-1,Rückstellungen!J12) -> 8959.19 | M7: =Rückstellungen!L12 -> UB RA Jubiläum | O7: =Rückstellungen!M12 -> 211110
A8: =Rückstellungen!$B$3 -> XXXX | C8: =Rückstellungen!$J$5 -> LG | F8: =Rückstellungen!$M$4 -> 2024-12-31 | I8: =Rückstellungen!$I$4 -> UB RA Rückstellungen | J8: =Rückstellungen!G13 -> 384000 | K8: =IF(Rückstellungen!I13="Haben",50,40) -> 50 | L8: =IF(Rückstellungen!I13="Haben",Rückstellungen!J13*-1,Rückstellungen!J13) -> 3299.78 | M8: =Rückstellungen!L13 -> UB RA Jubiläum | O8: =Rückstellungen!M13 -> 211300
A9: =Rückstellungen!$B$3 -> XXXX | C9: =Rückstellungen!$J$5 -> LG | F9: =Rückstellungen!$M$4 -> 2024-12-31 | I9: =Rückstellungen!$I$4 -> UB RA Rückstellungen | J9: =Rückstellungen!G14 -> 384000 | K9: =IF(Rückstellungen!I14="Haben",50,40) -> 40 | L9: =IF(Rückstellungen!I14="Haben",Rückstellungen!J14*-1,Rückstellungen!J14) -> 3299.78 | M9: =Rückstellungen!L14 -> UB RA Jubiläum | O9: =Rückstellungen!M14 -> 211310
A10: =Rückstellungen!$B$3 -> XXXX | C10: =Rückstellungen!$J$5 -> LG | F10: =Rückstellungen!$M$4 -> 2024-12-31 | I10: =Rückstellungen!$I$4 -> UB RA Rückstellungen | J10: =Rückstellungen!G15 -> 384000 | K10: =IF(Rückstellungen!I15="Haben",50,40) -> 40 | L10: =IF(Rückstellungen!I15="Haben",Rückstellungen!J15*-1,Rückstellungen!J15) -> 12507.28 | M10: =Rückstellungen!L15 -> UB RA Jubiläum | O10: =Rückstellungen!M15 -> 211400
A11: =Rückstellungen!$B$3 -> XXXX | C11: =Rückstellungen!$J$5 -> LG | F11: =Rückstellungen!$M$4 -> 2024-12-31 | I11: =Rückstellungen!$I$4 -> UB RA Rückstellungen | J11: =Rückstellungen!G16 -> 384000 | K11: =IF(Rückstellungen!I16="Haben",50,40) -> 40 | L11: =IF(Rückstellungen!I16="Haben",Rückstellungen!J16*-1,Rückstellungen!J16) -> 2092.72 | M11: =Rückstellungen!L16 -> UB RA Jubiläum | O11: =Rückstellungen!M16 -> 211410
A12: =Rückstellungen!$B$3 -> XXXX | C12: =Rückstellungen!$J$5 -> LG | F12: =Rückstellungen!$M$4 -> 2024-12-31 | I12: =Rückstellungen!$I$4 -> UB RA Rückstellungen | J12: =Rückstellungen!G17 -> 0 | K12: =IF(Rückstellungen!I17="Haben",50,40) -> 40 | L12: =IF(Rückstellungen!I17="Haben",Rückstellungen!J17*-1,Rückstellungen!J17) -> 0 | M12: =Rückstellungen!L17 ->  | O12: =Rückstellungen!M17 -> 0
A13: =Rückstellungen!$B$3 -> XXXX | C13: =Rückstellungen!$J$5 -> LG | F13: =Rückstellungen!$M$4 -> 2024-12-31 | I13: =Rückstellungen!$I$4 -> UB RA Rückstellungen | J13: =Rückstellungen!G18 -> 0 | K13: =IF(Rückstellungen!I18="Haben",50,40) -> 40 | L13: =IF(Rückstellungen!I18="Haben",Rückstellungen!J18*-1,Rückstellungen!J18) -> 0 | M13: =Rückstellungen!L18 ->  | O13: =Rückstellungen!M18 -> 0
A14: =Rückstellungen!$B$3 -> XXXX | C14: =Rückstellungen!$J$5 -> LG | F14: =Rückstellungen!$M$4 -> 2024-12-31 | I14: =Rückstellungen!$I$4 -> UB RA Rückstellungen | J14: =Rückstellungen!G19 -> 0 | K14: =IF(Rückstellungen!I19="Haben",50,40) -> 40 | L14: =IF(Rückstellungen!I19="Haben",Rückstellungen!J19*-1,Rückstellungen!J19) -> 0 | M14: =Rückstellungen!L19 ->  | O14: =Rückstellungen!M19 -> 0
A15: =Rückstellungen!$B$3 -> XXXX | C15: =Rückstellungen!$J$5 -> LG | F15: =Rückstellungen!$M$4 -> 2024-12-31 | I15: =Rückstellungen!$I$4 -> UB RA Rückstellungen | J15: =Rückstellungen!G20 -> 0 | K15: =IF(Rückstellungen!I20="Haben",50,40) -> 40 | L15: =IF(Rückstellungen!I20="Haben",Rückstellungen!J20*-1,Rückstellungen!J20) -> 0 | M15: =Rückstellungen!L20 ->  | O15: =Rückstellungen!M20 -> 0
A16: =Rückstellungen!$B$3 -> XXXX | C16: =Rückstellungen!$J$5 -> LG | F16: =Rückstellungen!$M$4 -> 2024-12-31 | I16: =Rückstellungen!$I$4 -> UB RA Rückstellungen | J16: =Rückstellungen!G21 -> 0 | K16: =IF(Rückstellungen!I21="Haben",50,40) -> 40 | L16: =IF(Rückstellungen!I21="Haben",Rückstellungen!J21*-1,Rückstellungen!J21) -> 0 | M16: =Rückstellungen!L21 ->  | O16: =Rückstellungen!M21 -> 0
A17: =Rückstellungen!$B$3 -> XXXX | C17: =Rückstellungen!$J$5 -> LG | F17: =Rückstellungen!$M$4 -> 2024-12-31 | I17: =Rückstellungen!$I$4 -> UB RA Rückstellungen | J17: =Rückstellungen!G22 -> 0 | K17: =IF(Rückstellungen!I22="Haben",50,40) -> 40 | L17: =IF(Rückstellungen!I22="Haben",Rückstellungen!J22*-1,Rückstellungen!J22) -> 0 | M17: =Rückstellungen!L22 ->  | O17: =Rückstellungen!M22 -> 0
A18: =Rückstellungen!$B$3 -> XXXX | C18: =Rückstellungen!$J$5 -> LG | F18: =Rückstellungen!$M$4 -> 2024-12-31 | I18: =Rückstellungen!$I$4 -> UB RA Rückstellungen | J18: =Rückstellungen!G23 -> 0 | K18: =IF(Rückstellungen!I23="Haben",50,40) -> 40 | L18: =IF(Rückstellungen!I23="Haben",Rückstellungen!J23*-1,Rückstellungen!J23) -> 0 | M18: =Rückstellungen!L23 ->  | O18: =Rückstellungen!M23 -> 0
A19: =Rückstellungen!$B$3 -> XXXX | C19: =Rückstellungen!$J$5 -> LG | F19: =Rückstellungen!$M$4 -> 2024-12-31 | I19: =Rückstellungen!$I$4 -> UB RA Rückstellungen | J19: =Rückstellungen!G24 -> 0 | K19: =IF(Rückstellungen!I24="Haben",50,40) -> 40 | L19: =IF(Rückstellungen!I24="Haben",Rückstellungen!J24*-1,Rückstellungen!J24) -> 0 | M19: =Rückstellungen!L24 ->  | O19: =Rückstellungen!M24 -> 0
A20: =Rückstellungen!$B$3 -> XXXX | C20: =Rückstellungen!$J$5 -> LG | F20: =Rückstellungen!$M$4 -> 2024-12-31 | I20: =Rückstellungen!$I$4 -> UB RA Rückstellungen | J20: =Rückstellungen!G25 -> 0 | K20: =IF(Rückstellungen!I25="Haben",50,40) -> 40 | L20: =IF(Rückstellungen!I25="Haben",Rückstellungen!J25*-1,Rückstellungen!J25) -> 0 | M20: =Rückstellungen!L25 ->  | O20: =Rückstellungen!M25 -> 0
A21: =Rückstellungen!$B$3 -> XXXX | C21: =Rückstellungen!$J$5 -> LG | F21: =Rückstellungen!$M$4 -> 2024-12-31 | I21: =Rückstellungen!$I$4 -> UB RA Rückstellungen | J21: =Rückstellungen!G26 -> 0 | K21: =IF(Rückstellungen!I26="Haben",50,40) -> 40 | L21: =IF(Rückstellungen!I26="Haben",Rückstellungen!J26*-1,Rückstellungen!J26) -> 0 | M21: =Rückstellungen!L26 ->  | O21: =Rückstellungen!M26 -> 0
A22: =Rückstellungen!$B$3 -> XXXX | C22: =Rückstellungen!$J$5 -> LG | F22: =Rückstellungen!$M$4 -> 2024-12-31 | I22: =Rückstellungen!$I$4 -> UB RA Rückstellungen | J22: =Rückstellungen!G27 -> 0 | K22: =IF(Rückstellungen!I27="Haben",50,40) -> 40 | L22: =IF(Rückstellungen!I27="Haben",Rückstellungen!J27*-1,Rückstellungen!J27) -> 0 | M22: =Rückstellungen!L27 ->  | O22: =Rückstellungen!M27 -> 0
A23: =Rückstellungen!$B$3 -> XXXX | C23: =Rückstellungen!$J$5 -> LG | F23: =Rückstellungen!$M$4 -> 2024-12-31 | I23: =Rückstellungen!$I$4 -> UB RA Rückstellungen | J23: =Rückstellungen!G28 -> 0 | K23: =IF(Rückstellungen!I28="Haben",50,40) -> 40 | L23: =IF(Rückstellungen!I28="Haben",Rückstellungen!J28*-1,Rückstellungen!J28) -> 0 | M23: =Rückstellungen!L28 ->  | O23: =Rückstellungen!M28 -> 0
A24: =Rückstellungen!$B$3 -> XXXX | C24: =Rückstellungen!$J$5 -> LG | F24: =Rückstellungen!$M$4 -> 2024-12-31 | I24: =Rückstellungen!$I$4 -> UB RA Rückstellungen | J24: =Rückstellungen!G29 -> 0 | K24: =IF(Rückstellungen!I29="Haben",50,40) -> 40 | L24: =IF(Rückstellungen!I29="Haben",Rückstellungen!J29*-1,Rückstellungen!J29) -> 0 | M24: =Rückstellungen!L29 ->  | O24: =Rückstellungen!M29 -> 0
A25: =Rückstellungen!$B$3 -> XXXX | C25: =Rückstellungen!$J$5 -> LG | F25: =Rückstellungen!$M$4 -> 2024-12-31 | I25: =Rückstellungen!$I$4 -> UB RA Rückstellungen | J25: =Rückstellungen!G30 -> 0 | K25: =IF(Rückstellungen!I30="Haben",50,40) -> 40 | L25: =IF(Rückstellungen!I30="Haben",Rückstellungen!J30*-1,Rückstellungen!J30) -> 0 | M25: =Rückstellungen!L30 ->  | O25: =Rückstellungen!M30 -> 0
A26: =Rückstellungen!$B$3 -> XXXX | C26: =Rückstellungen!$J$5 -> LG | F26: =Rückstellungen!$M$4 -> 2024-12-31 | I26: =Rückstellungen!$I$4 -> UB RA Rückstellungen | J26: =Rückstellungen!G31 -> 0 | K26: =IF(Rückstellungen!I31="Haben",50,40) -> 40 | L26: =IF(Rückstellungen!I31="Haben",Rückstellungen!J31*-1,Rückstellungen!J31) -> 0 | M26: =Rückstellungen!L31 ->  | O26: =Rückstellungen!M31 -> 0
A27: =Rückstellungen!$B$3 -> XXXX | C27: =Rückstellungen!$J$5 -> LG | F27: =Rückstellungen!$M$4 -> 2024-12-31 | I27: =Rückstellungen!$I$4 -> UB RA Rückstellungen | J27: =Rückstellungen!G32 -> 0 | K27: =IF(Rückstellungen!I32="Haben",50,40) -> 40 | L27: =IF(Rückstellungen!I32="Haben",Rückstellungen!J32*-1,Rückstellungen!J32) -> 0 | M27: =Rückstellungen!L32 ->  | O27: =Rückstellungen!M32 -> 0
A28: =Rückstellungen!$B$3 -> XXXX | C28: =Rückstellungen!$J$5 -> LG | F28: =Rückstellungen!$M$4 -> 2024-12-31 | I28: =Rückstellungen!$I$4 -> UB RA Rückstellungen | J28: =Rückstellungen!G33 -> 0 | K28: =IF(Rückstellungen!I33="Haben",50,40) -> 40 | L28: =IF(Rückstellungen!I33="Haben",Rückstellungen!J33*-1,Rückstellungen!J33) -> 0 | M28: =Rückstellungen!L33 ->  | O28: =Rückstellungen!M33 -> 0
A29: =Rückstellungen!$B$3 -> XXXX | C29: =Rückstellungen!$J$5 -> LG | F29: =Rückstellungen!$M$4 -> 2024-12-31 | I29: =Rückstellungen!$I$4 -> UB RA Rückstellungen | J29: =Rückstellungen!G34 -> 0 | K29: =IF(Rückstellungen!I34="Haben",50,40) -> 40 | L29: =IF(Rückstellungen!I34="Haben",Rückstellungen!J34*-1,Rückstellungen!J34) -> 0 | M29: =Rückstellungen!L34 ->  | O29: =Rückstellungen!M34 -> 0
A30: =Rückstellungen!$B$3 -> XXXX | C30: =Rückstellungen!$J$5 -> LG | F30: =Rückstellungen!$M$4 -> 2024-12-31 | I30: =Rückstellungen!$I$4 -> UB RA Rückstellungen | J30: =Rückstellungen!G35 -> 0 | K30: =IF(Rückstellungen!I35="Haben",50,40) -> 40 | L30: =IF(Rückstellungen!I35="Haben",Rückstellungen!J35*-1,Rückstellungen!J35) -> 0 | M30: =Rückstellungen!L35 ->  | O30: =Rückstellungen!M35 -> 0
A31: =Rückstellungen!$B$3 -> XXXX | C31: =Rückstellungen!$J$5 -> LG | F31: =Rückstellungen!$M$4 -> 2024-12-31 | I31: =Rückstellungen!$I$4 -> UB RA Rückstellungen | J31: =Rückstellungen!G36 -> 0 | K31: =IF(Rückstellungen!I36="Haben",50,40) -> 40 | L31: =IF(Rückstellungen!I36="Haben",Rückstellungen!J36*-1,Rückstellungen!J36) -> 0 | M31: =Rückstellungen!L36 ->  | O31: =Rückstellungen!M36 -> 0
A32: =Rückstellungen!$B$3 -> XXXX | C32: =Rückstellungen!$J$5 -> LG | F32: =Rückstellungen!$M$4 -> 2024-12-31 | I32: =Rückstellungen!$I$4 -> UB RA Rückstellungen | J32: =Rückstellungen!G37 -> 0 | K32: =IF(Rückstellungen!I37="Haben",50,40) -> 40 | L32: =IF(Rückstellungen!I37="Haben",Rückstellungen!J37*-1,Rückstellungen!J37) -> 0 | M32: =Rückstellungen!L37 ->  | O32: =Rückstellungen!M37 -> 0
A33: =Rückstellungen!$B$3 -> XXXX | C33: =Rückstellungen!$J$5 -> LG | F33: =Rückstellungen!$M$4 -> 2024-12-31 | I33: =Rückstellungen!$I$4 -> UB RA Rückstellungen | J33: =Rückstellungen!G38 -> 0 | K33: =IF(Rückstellungen!I38="Haben",50,40) -> 40 | L33: =IF(Rückstellungen!I38="Haben",Rückstellungen!J38*-1,Rückstellungen!J38) -> 0 | M33: =Rückstellungen!L38 ->  | O33: =Rückstellungen!M38 -> 0
A34: =Rückstellungen!$B$3 -> XXXX | C34: =Rückstellungen!$J$5 -> LG | F34: =Rückstellungen!$M$4 -> 2024-12-31 | I34: =Rückstellungen!$I$4 -> UB RA Rückstellungen | J34: =Rückstellungen!G39 -> 0 | K34: =IF(Rückstellungen!I39="Haben",50,40) -> 40 | L34: =IF(Rückstellungen!I39="Haben",Rückstellungen!J39*-1,Rückstellungen!J39) -> 0 | M34: =Rückstellungen!L39 ->  | O34: =Rückstellungen!M39 -> 0
A35: =Rückstellungen!$B$3 -> XXXX | C35: =Rückstellungen!$J$5 -> LG | F35: =Rückstellungen!$M$4 -> 2024-12-31 | I35: =Rückstellungen!$I$4 -> UB RA Rückstellungen | J35: =Rückstellungen!G40 -> 0 | K35: =IF(Rückstellungen!I40="Haben",50,40) -> 40 | L35: =IF(Rückstellungen!I40="Haben",Rückstellungen!J40*-1,Rückstellungen!J40) -> 0 | M35: =Rückstellungen!L40 ->  | O35: =Rückstellungen!M40 -> 0
A36: =Rückstellungen!$B$3 -> XXXX | C36: =Rückstellungen!$J$5 -> LG | F36: =Rückstellungen!$M$4 -> 2024-12-31 | I36: =Rückstellungen!$I$4 -> UB RA Rückstellungen | J36: =Rückstellungen!G41 -> 0 | K36: =IF(Rückstellungen!I41="Haben",50,40) -> 40 | L36: =IF(Rückstellungen!I41="Haben",Rückstellungen!J41*-1,Rückstellungen!J41) -> 0 | M36: =Rückstellungen!L41 ->  | O36: =Rückstellungen!M41 -> 0
A37: =Rückstellungen!$B$3 -> XXXX | C37: =Rückstellungen!$J$5 -> LG | F37: =Rückstellungen!$M$4 -> 2024-12-31 | I37: =Rückstellungen!$I$4 -> UB RA Rückstellungen | J37: =Rückstellungen!G42 -> 0 | K37: =IF(Rückstellungen!I42="Haben",50,40) -> 40 | L37: =IF(Rückstellungen!I42="Haben",Rückstellungen!J42*-1,Rückstellungen!J42) -> 0 | M37: =Rückstellungen!L42 ->  | O37: =Rückstellungen!M42 -> 0
A38: =Rückstellungen!$B$3 -> XXXX | C38: =Rückstellungen!$J$5 -> LG | F38: =Rückstellungen!$M$4 -> 2024-12-31 | I38: =Rückstellungen!$I$4 -> UB RA Rückstellungen | J38: =Rückstellungen!G43 -> 0 | K38: =IF(Rückstellungen!I43="Haben",50,40) -> 40 | L38: =IF(Rückstellungen!I43="Haben",Rückstellungen!J43*-1,Rückstellungen!J43) -> 0 | M38: =Rückstellungen!L43 ->  | O38: =Rückstellungen!M43 -> 0
A39: =Rückstellungen!$B$3 -> XXXX | C39: =Rückstellungen!$J$5 -> LG | F39: =Rückstellungen!$M$4 -> 2024-12-31 | I39: =Rückstellungen!$I$4 -> UB RA Rückstellungen | J39: =Rückstellungen!G44 -> 0 | K39: =IF(Rückstellungen!I44="Haben",50,40) -> 40 | L39: =IF(Rückstellungen!I44="Haben",Rückstellungen!J44*-1,Rückstellungen!J44) -> 0 | M39: =Rückstellungen!L44 ->  | O39: =Rückstellungen!M44 -> 0
A40: =Rückstellungen!$B$3 -> XXXX | C40: =Rückstellungen!$J$5 -> LG | F40: =Rückstellungen!$M$4 -> 2024-12-31 | I40: =Rückstellungen!$I$4 -> UB RA Rückstellungen | J40: =Rückstellungen!G45 -> 0 | K40: =IF(Rückstellungen!I45="Haben",50,40) -> 40 | L40: =IF(Rückstellungen!I45="Haben",Rückstellungen!J45*-1,Rückstellungen!J45) -> 0 | M40: =Rückstellungen!L45 ->  | O40: =Rückstellungen!M45 -> 0
A41: =Rückstellungen!$B$3 -> XXXX | C41: =Rückstellungen!$J$5 -> LG | F41: =Rückstellungen!$M$4 -> 2024-12-31 | I41: =Rückstellungen!$I$4 -> UB RA Rückstellungen | J41: =Rückstellungen!G46 -> 0 | K41: =IF(Rückstellungen!I46="Haben",50,40) -> 40 | L41: =IF(Rückstellungen!I46="Haben",Rückstellungen!J46*-1,Rückstellungen!J46) -> 0 | M41: =Rückstellungen!L46 ->  | O41: =Rückstellungen!M46 -> 0
A42: =Rückstellungen!$B$3 -> XXXX | C42: =Rückstellungen!$J$5 -> LG | F42: =Rückstellungen!$M$4 -> 2024-12-31 | I42: =Rückstellungen!$I$4 -> UB RA Rückstellungen | J42: =Rückstellungen!G47 -> 0 | K42: =IF(Rückstellungen!I47="Haben",50,40) -> 40 | L42: =IF(Rückstellungen!I47="Haben",Rückstellungen!J47*-1,Rückstellungen!J47) -> 0 | M42: =Rückstellungen!L47 ->  | O42: =Rückstellungen!M47 -> 0
A43: =Rückstellungen!$B$3 -> XXXX | C43: =Rückstellungen!$J$5 -> LG | F43: =Rückstellungen!$M$4 -> 2024-12-31 | I43: =Rückstellungen!$I$4 -> UB RA Rückstellungen | J43: =Rückstellungen!G48 -> 0 | K43: =IF(Rückstellungen!I48="Haben",50,40) -> 40 | L43: =IF(Rückstellungen!I48="Haben",Rückstellungen!J48*-1,Rückstellungen!J48) -> 0 | M43: =Rückstellungen!L48 ->  | O43: =Rückstellungen!M48 -> 0
A44: =Rückstellungen!$B$3 -> XXXX | C44: =Rückstellungen!$J$5 -> LG | F44: =Rückstellungen!$M$4 -> 2024-12-31 | I44: =Rückstellungen!$I$4 -> UB RA Rückstellungen | J44: =Rückstellungen!G49 -> 0 | K44: =IF(Rückstellungen!I49="Haben",50,40) -> 40 | L44: =IF(Rückstellungen!I49="Haben",Rückstellungen!J49*-1,Rückstellungen!J49) -> 0 | M44: =Rückstellungen!L49 ->  | O44: =Rückstellungen!M49 -> 0
A45: =Rückstellungen!$B$3 -> XXXX | C45: =Rückstellungen!$J$5 -> LG | F45: =Rückstellungen!$M$4 -> 2024-12-31 | I45: =Rückstellungen!$I$4 -> UB RA Rückstellungen | J45: =Rückstellungen!G50 -> 0 | K45: =IF(Rückstellungen!I50="Haben",50,40) -> 40 | L45: =IF(Rückstellungen!I50="Haben",Rückstellungen!J50*-1,Rückstellungen!J50) -> 0 | M45: =Rückstellungen!L50 ->  | O45: =Rückstellungen!M50 -> 0
A46: =Rückstellungen!$B$3 -> XXXX | C46: =Rückstellungen!$J$5 -> LG | F46: =Rückstellungen!$M$4 -> 2024-12-31 | I46: =Rückstellungen!$I$4 -> UB RA Rückstellungen | J46: =Rückstellungen!G51 -> 0 | K46: =IF(Rückstellungen!I51="Haben",50,40) -> 40 | L46: =IF(Rückstellungen!I51="Haben",Rückstellungen!J51*-1,Rückstellungen!J51) -> 0 | M46: =Rückstellungen!L51 ->  | O46: =Rückstellungen!M51 -> 0
A47: =Rückstellungen!$B$3 -> XXXX | C47: =Rückstellungen!$J$5 -> LG | F47: =Rückstellungen!$M$4 -> 2024-12-31 | I47: =Rückstellungen!$I$4 -> UB RA Rückstellungen | J47: =Rückstellungen!G52 -> 0 | K47: =IF(Rückstellungen!I52="Haben",50,40) -> 40 | L47: =IF(Rückstellungen!I52="Haben",Rückstellungen!J52*-1,Rückstellungen!J52) -> 0 | M47: =Rückstellungen!L52 ->  | O47: =Rückstellungen!M52 -> 0
A48: =Rückstellungen!$B$3 -> XXXX | C48: =Rückstellungen!$J$5 -> LG | F48: =Rückstellungen!$M$4 -> 2024-12-31 | I48: =Rückstellungen!$I$4 -> UB RA Rückstellungen | J48: =Rückstellungen!G53 -> 0 | K48: =IF(Rückstellungen!I53="Haben",50,40) -> 40 | L48: =IF(Rückstellungen!I53="Haben",Rückstellungen!J53*-1,Rückstellungen!J53) -> 0 | M48: =Rückstellungen!L53 ->  | O48: =Rückstellungen!M53 -> 0
A49: =Rückstellungen!$B$3 -> XXXX | C49: =Rückstellungen!$J$5 -> LG | F49: =Rückstellungen!$M$4 -> 2024-12-31 | I49: =Rückstellungen!$I$4 -> UB RA Rückstellungen | J49: =Rückstellungen!G54 -> 0 | K49: =IF(Rückstellungen!I54="Haben",50,40) -> 40 | L49: =IF(Rückstellungen!I54="Haben",Rückstellungen!J54*-1,Rückstellungen!J54) -> 0 | M49: =Rückstellungen!L54 ->  | O49: =Rückstellungen!M54 -> 0
A50: =Rückstellungen!$B$3 -> XXXX | C50: =Rückstellungen!$J$5 -> LG | F50: =Rückstellungen!$M$4 -> 2024-12-31 | I50: =Rückstellungen!$I$4 -> UB RA Rückstellungen | J50: =Rückstellungen!G55 -> 0 | K50: =IF(Rückstellungen!I55="Haben",50,40) -> 40 | L50: =IF(Rückstellungen!I55="Haben",Rückstellungen!J55*-1,Rückstellungen!J55) -> 0 | M50: =Rückstellungen!L55 ->  | O50: =Rückstellungen!M55 -> 0
A51: =Rückstellungen!$B$3 -> XXXX | C51: =Rückstellungen!$J$5 -> LG | F51: =Rückstellungen!$M$4 -> 2024-12-31 | I51: =Rückstellungen!$I$4 -> UB RA Rückstellungen | J51: =Rückstellungen!G56 -> 0 | K51: =IF(Rückstellungen!I56="Haben",50,40) -> 40 | L51: =IF(Rückstellungen!I56="Haben",Rückstellungen!J56*-1,Rückstellungen!J56) -> 0 | M51: =Rückstellungen!L56 ->  | O51: =Rückstellungen!M56 -> 0
A52: =Rückstellungen!$B$3 -> XXXX | C52: =Rückstellungen!$J$5 -> LG | F52: =Rückstellungen!$M$4 -> 2024-12-31 | I52: =Rückstellungen!$I$4 -> UB RA Rückstellungen | J52: =Rückstellungen!G57 -> 0 | K52: =IF(Rückstellungen!I57="Haben",50,40) -> 40 | L52: =IF(Rückstellungen!I57="Haben",Rückstellungen!J57*-1,Rückstellungen!J57) -> 0 | M52: =Rückstellungen!L57 ->  | O52: =Rückstellungen!M57 -> 0
A53: =Rückstellungen!$B$3 -> XXXX | C53: =Rückstellungen!$J$5 -> LG | F53: =Rückstellungen!$M$4 -> 2024-12-31 | I53: =Rückstellungen!$I$4 -> UB RA Rückstellungen | J53: =Rückstellungen!G58 -> 0 | K53: =IF(Rückstellungen!I58="Haben",50,40) -> 40 | L53: =IF(Rückstellungen!I58="Haben",Rückstellungen!J58*-1,Rückstellungen!J58) -> 0 | M53: =Rückstellungen!L58 ->  | O53: =Rückstellungen!M58 -> 0
A54: =Rückstellungen!$B$3 -> XXXX | C54: =Rückstellungen!$J$5 -> LG | F54: =Rückstellungen!$M$4 -> 2024-12-31 | I54: =Rückstellungen!$I$4 -> UB RA Rückstellungen | J54: =Rückstellungen!G59 -> 0 | K54: =IF(Rückstellungen!I59="Haben",50,40) -> 40 | L54: =IF(Rückstellungen!I59="Haben",Rückstellungen!J59*-1,Rückstellungen!J59) -> 0 | M54: =Rückstellungen!L59 ->  | O54: =Rückstellungen!M59 -> 0
A55: =Rückstellungen!$B$3 -> XXXX | C55: =Rückstellungen!$J$5 -> LG | F55: =Rückstellungen!$M$4 -> 2024-12-31 | I55: =Rückstellungen!$I$4 -> UB RA Rückstellungen | J55: =Rückstellungen!G60 -> 0 | K55: =IF(Rückstellungen!I60="Haben",50,40) -> 40 | L55: =IF(Rückstellungen!I60="Haben",Rückstellungen!J60*-1,Rückstellungen!J60) -> 0 | M55: =Rückstellungen!L60 ->  | O55: =Rückstellungen!M60 -> 0
A56: =Rückstellungen!$B$3 -> XXXX | C56: =Rückstellungen!$J$5 -> LG | F56: =Rückstellungen!$M$4 -> 2024-12-31 | I56: =Rückstellungen!$I$4 -> UB RA Rückstellungen | J56: =Rückstellungen!G61 -> 0 | K56: =IF(Rückstellungen!I61="Haben",50,40) -> 40 | L56: =IF(Rückstellungen!I61="Haben",Rückstellungen!J61*-1,Rückstellungen!J61) -> 0 | M56: =Rückstellungen!L61 ->  | O56: =Rückstellungen!M61 -> 0
A57: =Rückstellungen!$B$3 -> XXXX | C57: =Rückstellungen!$J$5 -> LG | F57: =Rückstellungen!$M$4 -> 2024-12-31 | I57: =Rückstellungen!$I$4 -> UB RA Rückstellungen | J57: =Rückstellungen!G62 -> 0 | K57: =IF(Rückstellungen!I62="Haben",50,40) -> 40 | L57: =IF(Rückstellungen!I62="Haben",Rückstellungen!J62*-1,Rückstellungen!J62) -> 0 | M57: =Rückstellungen!L62 ->  | O57: =Rückstellungen!M62 -> 0
A58: =Rückstellungen!$B$3 -> XXXX | C58: =Rückstellungen!$J$5 -> LG | F58: =Rückstellungen!$M$4 -> 2024-12-31 | I58: =Rückstellungen!$I$4 -> UB RA Rückstellungen | J58: =Rückstellungen!G63 -> 0 | K58: =IF(Rückstellungen!I63="Haben",50,40) -> 40 | L58: =IF(Rückstellungen!I63="Haben",Rückstellungen!J63*-1,Rückstellungen!J63) -> 0 | M58: =Rückstellungen!L63 ->  | O58: =Rückstellungen!M63 -> 0
A59: =Rückstellungen!$B$3 -> XXXX | C59: =Rückstellungen!$J$5 -> LG | F59: =Rückstellungen!$M$4 -> 2024-12-31 | I59: =Rückstellungen!$I$4 -> UB RA Rückstellungen | J59: =Rückstellungen!G64 -> 0 | K59: =IF(Rückstellungen!I64="Haben",50,40) -> 40 | L59: =IF(Rückstellungen!I64="Haben",Rückstellungen!J64*-1,Rückstellungen!J64) -> 0 | M59: =Rückstellungen!L64 ->  | O59: =Rückstellungen!M64 -> 0
A60: =Rückstellungen!$B$3 -> XXXX | C60: =Rückstellungen!$J$5 -> LG | F60: =Rückstellungen!$M$4 -> 2024-12-31 | I60: =Rückstellungen!$I$4 -> UB RA Rückstellungen | J60: =Rückstellungen!G65 -> 0 | K60: =IF(Rückstellungen!I65="Haben",50,40) -> 40 | L60: =IF(Rückstellungen!I65="Haben",Rückstellungen!J65*-1,Rückstellungen!J65) -> 0 | M60: =Rückstellungen!L65 ->  | O60: =Rückstellungen!M65 -> 0
A61: =Rückstellungen!$B$3 -> XXXX | C61: =Rückstellungen!$J$5 -> LG | F61: =Rückstellungen!$M$4 -> 2024-12-31 | I61: =Rückstellungen!$I$4 -> UB RA Rückstellungen | J61: =Rückstellungen!G66 -> 0 | K61: =IF(Rückstellungen!I66="Haben",50,40) -> 40 | L61: =IF(Rückstellungen!I66="Haben",Rückstellungen!J66*-1,Rückstellungen!J66) -> 0 | M61: =Rückstellungen!L66 ->  | O61: =Rückstellungen!M66 -> 0
A62: =Rückstellungen!$B$3 -> XXXX | C62: =Rückstellungen!$J$5 -> LG | F62: =Rückstellungen!$M$4 -> 2024-12-31 | I62: =Rückstellungen!$I$4 -> UB RA Rückstellungen | J62: =Rückstellungen!G67 -> 0 | K62: =IF(Rückstellungen!I67="Haben",50,40) -> 40 | L62: =IF(Rückstellungen!I67="Haben",Rückstellungen!J67*-1,Rückstellungen!J67) -> 0 | M62: =Rückstellungen!L67 ->  | O62: =Rückstellungen!M67 -> 0
A63: =Rückstellungen!$B$3 -> XXXX | C63: =Rückstellungen!$J$5 -> LG | F63: =Rückstellungen!$M$4 -> 2024-12-31 | I63: =Rückstellungen!$I$4 -> UB RA Rückstellungen | J63: =Rückstellungen!G68 -> 0 | K63: =IF(Rückstellungen!I68="Haben",50,40) -> 40 | L63: =IF(Rückstellungen!I68="Haben",Rückstellungen!J68*-1,Rückstellungen!J68) -> 0 | M63: =Rückstellungen!L68 ->  | O63: =Rückstellungen!M68 -> 0
A64: =Rückstellungen!$B$3 -> XXXX | C64: =Rückstellungen!$J$5 -> LG | F64: =Rückstellungen!$M$4 -> 2024-12-31 | I64: =Rückstellungen!$I$4 -> UB RA Rückstellungen | J64: =Rückstellungen!G69 -> 0 | K64: =IF(Rückstellungen!I69="Haben",50,40) -> 40 | L64: =IF(Rückstellungen!I69="Haben",Rückstellungen!J69*-1,Rückstellungen!J69) -> 0 | M64: =Rückstellungen!L69 ->  | O64: =Rückstellungen!M69 -> 0
A65: =Rückstellungen!$B$3 -> XXXX | C65: =Rückstellungen!$J$5 -> LG | F65: =Rückstellungen!$M$4 -> 2024-12-31 | I65: =Rückstellungen!$I$4 -> UB RA Rückstellungen | J65: =Rückstellungen!G70 -> 0 | K65: =IF(Rückstellungen!I70="Haben",50,40) -> 40 | L65: =IF(Rückstellungen!I70="Haben",Rückstellungen!J70*-1,Rückstellungen!J70) -> 0 | M65: =Rückstellungen!L70 ->  | O65: =Rückstellungen!M70 -> 0
A66: =Rückstellungen!$B$3 -> XXXX | C66: =Rückstellungen!$J$5 -> LG | F66: =Rückstellungen!$M$4 -> 2024-12-31 | I66: =Rückstellungen!$I$4 -> UB RA Rückstellungen | J66: =Rückstellungen!G71 -> 0 | K66: =IF(Rückstellungen!I71="Haben",50,40) -> 40 | L66: =IF(Rückstellungen!I71="Haben",Rückstellungen!J71*-1,Rückstellungen!J71) -> 0 | M66: =Rückstellungen!L71 ->  | O66: =Rückstellungen!M71 -> 0
A67: =Rückstellungen!$B$3 -> XXXX | C67: =Rückstellungen!$J$5 -> LG | F67: =Rückstellungen!$M$4 -> 2024-12-31 | I67: =Rückstellungen!$I$4 -> UB RA Rückstellungen | J67: =Rückstellungen!G72 -> 0 | K67: =IF(Rückstellungen!I72="Haben",50,40) -> 40 | L67: =IF(Rückstellungen!I72="Haben",Rückstellungen!J72*-1,Rückstellungen!J72) -> 0 | M67: =Rückstellungen!L72 ->  | O67: =Rückstellungen!M72 -> 0
A68: =Rückstellungen!$B$3 -> XXXX | C68: =Rückstellungen!$J$5 -> LG | F68: =Rückstellungen!$M$4 -> 2024-12-31 | I68: =Rückstellungen!$I$4 -> UB RA Rückstellungen | J68: =Rückstellungen!G73 -> 0 | K68: =IF(Rückstellungen!I73="Haben",50,40) -> 40 | L68: =IF(Rückstellungen!I73="Haben",Rückstellungen!J73*-1,Rückstellungen!J73) -> 0 | M68: =Rückstellungen!L73 ->  | O68: =Rückstellungen!M73 -> 0
A69: =Rückstellungen!$B$3 -> XXXX | C69: =Rückstellungen!$J$5 -> LG | F69: =Rückstellungen!$M$4 -> 2024-12-31 | I69: =Rückstellungen!$I$4 -> UB RA Rückstellungen | J69: =Rückstellungen!G74 -> 0 | K69: =IF(Rückstellungen!I74="Haben",50,40) -> 40 | L69: =IF(Rückstellungen!I74="Haben",Rückstellungen!J74*-1,Rückstellungen!J74) -> 0 | M69: =Rückstellungen!L74 ->  | O69: =Rückstellungen!M74 -> 0
A70: =Rückstellungen!$B$3 -> XXXX | C70: =Rückstellungen!$J$5 -> LG | F70: =Rückstellungen!$M$4 -> 2024-12-31 | I70: =Rückstellungen!$I$4 -> UB RA Rückstellungen | J70: =Rückstellungen!G75 -> 0 | K70: =IF(Rückstellungen!I75="Haben",50,40) -> 40 | L70: =IF(Rückstellungen!I75="Haben",Rückstellungen!J75*-1,Rückstellungen!J75) -> 0 | M70: =Rückstellungen!L75 ->  | O70: =Rückstellungen!M75 -> 0
A71: =Rückstellungen!$B$3 -> XXXX | C71: =Rückstellungen!$J$5 -> LG | F71: =Rückstellungen!$M$4 -> 2024-12-31 | I71: =Rückstellungen!$I$4 -> UB RA Rückstellungen | J71: =Rückstellungen!G76 -> 0 | K71: =IF(Rückstellungen!I76="Haben",50,40) -> 40 | L71: =IF(Rückstellungen!I76="Haben",Rückstellungen!J76*-1,Rückstellungen!J76) -> 0 | M71: =Rückstellungen!L76 ->  | O71: =Rückstellungen!M76 -> 0
A72: =Rückstellungen!$B$3 -> XXXX | C72: =Rückstellungen!$J$5 -> LG | F72: =Rückstellungen!$M$4 -> 2024-12-31 | I72: =Rückstellungen!$I$4 -> UB RA Rückstellungen | J72: =Rückstellungen!G77 -> 0 | K72: =IF(Rückstellungen!I77="Haben",50,40) -> 40 | L72: =IF(Rückstellungen!I77="Haben",Rückstellungen!J77*-1,Rückstellungen!J77) -> 0 | M72: =Rückstellungen!L77 ->  | O72: =Rückstellungen!M77 -> 0
A73: =Rückstellungen!$B$3 -> XXXX | C73: =Rückstellungen!$J$5 -> LG | F73: =Rückstellungen!$M$4 -> 2024-12-31 | I73: =Rückstellungen!$I$4 -> UB RA Rückstellungen | J73: =Rückstellungen!G78 -> 0 | K73: =IF(Rückstellungen!I78="Haben",50,40) -> 40 | L73: =IF(Rückstellungen!I78="Haben",Rückstellungen!J78*-1,Rückstellungen!J78) -> 0 | M73: =Rückstellungen!L78 ->  | O73: =Rückstellungen!M78 -> 0
A74: =Rückstellungen!$B$3 -> XXXX | C74: =Rückstellungen!$J$5 -> LG | F74: =Rückstellungen!$M$4 -> 2024-12-31 | I74: =Rückstellungen!$I$4 -> UB RA Rückstellungen | J74: =Rückstellungen!G79 -> 0 | K74: =IF(Rückstellungen!I79="Haben",50,40) -> 40 | L74: =IF(Rückstellungen!I79="Haben",Rückstellungen!J79*-1,Rückstellungen!J79) -> 0 | M74: =Rückstellungen!L79 ->  | O74: =Rückstellungen!M79 -> 0
A75: =Rückstellungen!$B$3 -> XXXX | C75: =Rückstellungen!$J$5 -> LG | F75: =Rückstellungen!$M$4 -> 2024-12-31 | I75: =Rückstellungen!$I$4 -> UB RA Rückstellungen | J75: =Rückstellungen!G80 -> 0 | K75: =IF(Rückstellungen!I80="Haben",50,40) -> 40 | L75: =IF(Rückstellungen!I80="Haben",Rückstellungen!J80*-1,Rückstellungen!J80) -> 0 | M75: =Rückstellungen!L80 ->  | O75: =Rückstellungen!M80 -> 0
A76: =Rückstellungen!$B$3 -> XXXX | C76: =Rückstellungen!$J$5 -> LG | F76: =Rückstellungen!$M$4 -> 2024-12-31 | I76: =Rückstellungen!$I$4 -> UB RA Rückstellungen | J76: =Rückstellungen!G81 -> 0 | K76: =IF(Rückstellungen!I81="Haben",50,40) -> 40 | L76: =IF(Rückstellungen!I81="Haben",Rückstellungen!J81*-1,Rückstellungen!J81) -> 0 | M76: =Rückstellungen!L81 ->  | O76: =Rückstellungen!M81 -> 0
A77: =Rückstellungen!$B$3 -> XXXX | C77: =Rückstellungen!$J$5 -> LG | F77: =Rückstellungen!$M$4 -> 2024-12-31 | I77: =Rückstellungen!$I$4 -> UB RA Rückstellungen | J77: =Rückstellungen!G82 -> 0 | K77: =IF(Rückstellungen!I82="Haben",50,40) -> 40 | L77: =IF(Rückstellungen!I82="Haben",Rückstellungen!J82*-1,Rückstellungen!J82) -> 0 | M77: =Rückstellungen!L82 ->  | O77: =Rückstellungen!M82 -> 0
A78: =Rückstellungen!$B$3 -> XXXX | C78: =Rückstellungen!$J$5 -> LG | F78: =Rückstellungen!$M$4 -> 2024-12-31 | I78: =Rückstellungen!$I$4 -> UB RA Rückstellungen | J78: =Rückstellungen!G83 -> 0 | K78: =IF(Rückstellungen!I83="Haben",50,40) -> 40 | L78: =IF(Rückstellungen!I83="Haben",Rückstellungen!J83*-1,Rückstellungen!J83) -> 0 | M78: =Rückstellungen!L83 ->  | O78: =Rückstellungen!M83 -> 0
A79: =Rückstellungen!$B$3 -> XXXX | C79: =Rückstellungen!$J$5 -> LG | F79: =Rückstellungen!$M$4 -> 2024-12-31 | I79: =Rückstellungen!$I$4 -> UB RA Rückstellungen | J79: =Rückstellungen!G84 -> 0 | K79: =IF(Rückstellungen!I84="Haben",50,40) -> 40 | L79: =IF(Rückstellungen!I84="Haben",Rückstellungen!J84*-1,Rückstellungen!J84) -> 0 | M79: =Rückstellungen!L84 ->  | O79: =Rückstellungen!M84 -> 0
A80: =Rückstellungen!$B$3 -> XXXX | C80: =Rückstellungen!$J$5 -> LG | F80: =Rückstellungen!$M$4 -> 2024-12-31 | I80: =Rückstellungen!$I$4 -> UB RA Rückstellungen | J80: =Rückstellungen!G85 -> 0 | K80: =IF(Rückstellungen!I85="Haben",50,40) -> 40 | L80: =IF(Rückstellungen!I85="Haben",Rückstellungen!J85*-1,Rückstellungen!J85) -> 0 | M80: =Rückstellungen!L85 ->  | O80: =Rückstellungen!M85 -> 0
A81: =Rückstellungen!$B$3 -> XXXX | C81: =Rückstellungen!$J$5 -> LG | F81: =Rückstellungen!$M$4 -> 2024-12-31 | I81: =Rückstellungen!$I$4 -> UB RA Rückstellungen | J81: =Rückstellungen!G86 -> 0 | K81: =IF(Rückstellungen!I86="Haben",50,40) -> 40 | L81: =IF(Rückstellungen!I86="Haben",Rückstellungen!J86*-1,Rückstellungen!J86) -> 0 | M81: =Rückstellungen!L86 ->  | O81: =Rückstellungen!M86 -> 0
A82: =Rückstellungen!$B$3 -> XXXX | C82: =Rückstellungen!$J$5 -> LG | F82: =Rückstellungen!$M$4 -> 2024-12-31 | I82: =Rückstellungen!$I$4 -> UB RA Rückstellungen | J82: =Rückstellungen!G87 -> 0 | K82: =IF(Rückstellungen!I87="Haben",50,40) -> 40 | L82: =IF(Rückstellungen!I87="Haben",Rückstellungen!J87*-1,Rückstellungen!J87) -> 0 | M82: =Rückstellungen!L87 ->  | O82: =Rückstellungen!M87 -> 0
A83: =Rückstellungen!$B$3 -> XXXX | C83: =Rückstellungen!$J$5 -> LG | F83: =Rückstellungen!$M$4 -> 2024-12-31 | I83: =Rückstellungen!$I$4 -> UB RA Rückstellungen | J83: =Rückstellungen!G88 -> 0 | K83: =IF(Rückstellungen!I88="Haben",50,40) -> 40 | L83: =IF(Rückstellungen!I88="Haben",Rückstellungen!J88*-1,Rückstellungen!J88) -> 0 | M83: =Rückstellungen!L88 ->  | O83: =Rückstellungen!M88 -> 0
A84: =Rückstellungen!$B$3 -> XXXX | C84: =Rückstellungen!$J$5 -> LG | F84: =Rückstellungen!$M$4 -> 2024-12-31 | I84: =Rückstellungen!$I$4 -> UB RA Rückstellungen | J84: =Rückstellungen!G89 -> 0 | K84: =IF(Rückstellungen!I89="Haben",50,40) -> 40 | L84: =IF(Rückstellungen!I89="Haben",Rückstellungen!J89*-1,Rückstellungen!J89) -> 0 | M84: =Rückstellungen!L89 ->  | O84: =Rückstellungen!M89 -> 0
A85: =Rückstellungen!$B$3 -> XXXX | C85: =Rückstellungen!$J$5 -> LG | F85: =Rückstellungen!$M$4 -> 2024-12-31 | I85: =Rückstellungen!$I$4 -> UB RA Rückstellungen | J85: =Rückstellungen!G90 -> 0 | K85: =IF(Rückstellungen!I90="Haben",50,40) -> 40 | L85: =IF(Rückstellungen!I90="Haben",Rückstellungen!J90*-1,Rückstellungen!J90) -> 0 | M85: =Rückstellungen!L90 ->  | O85: =Rückstellungen!M90 -> 0
A86: =Rückstellungen!$B$3 -> XXXX | C86: =Rückstellungen!$J$5 -> LG | F86: =Rückstellungen!$M$4 -> 2024-12-31 | I86: =Rückstellungen!$I$4 -> UB RA Rückstellungen | J86: =Rückstellungen!G91 -> 0 | K86: =IF(Rückstellungen!I91="Haben",50,40) -> 40 | L86: =IF(Rückstellungen!I91="Haben",Rückstellungen!J91*-1,Rückstellungen!J91) -> 0 | M86: =Rückstellungen!L91 ->  | O86: =Rückstellungen!M91 -> 0
A87: =Rückstellungen!$B$3 -> XXXX | C87: =Rückstellungen!$J$5 -> LG | F87: =Rückstellungen!$M$4 -> 2024-12-31 | I87: =Rückstellungen!$I$4 -> UB RA Rückstellungen | J87: =Rückstellungen!G92 -> 0 | K87: =IF(Rückstellungen!I92="Haben",50,40) -> 40 | L87: =IF(Rückstellungen!I92="Haben",Rückstellungen!J92*-1,Rückstellungen!J92) -> 0 | M87: =Rückstellungen!L92 ->  | O87: =Rückstellungen!M92 -> 0
A88: =Rückstellungen!$B$3 -> XXXX | C88: =Rückstellungen!$J$5 -> LG | F88: =Rückstellungen!$M$4 -> 2024-12-31 | I88: =Rückstellungen!$I$4 -> UB RA Rückstellungen | J88: =Rückstellungen!G93 -> 0 | K88: =IF(Rückstellungen!I93="Haben",50,40) -> 40 | L88: =IF(Rückstellungen!I93="Haben",Rückstellungen!J93*-1,Rückstellungen!J93) -> 0 | M88: =Rückstellungen!L93 ->  | O88: =Rückstellungen!M93 -> 0
A89: =Rückstellungen!$B$3 -> XXXX | C89: =Rückstellungen!$J$5 -> LG | F89: =Rückstellungen!$M$4 -> 2024-12-31 | I89: =Rückstellungen!$I$4 -> UB RA Rückstellungen | J89: =Rückstellungen!G94 -> 0 | K89: =IF(Rückstellungen!I94="Haben",50,40) -> 40 | L89: =IF(Rückstellungen!I94="Haben",Rückstellungen!J94*-1,Rückstellungen!J94) -> 0 | M89: =Rückstellungen!L94 ->  | O89: =Rückstellungen!M94 -> 0
A90: =Rückstellungen!$B$3 -> XXXX | C90: =Rückstellungen!$J$5 -> LG | F90: =Rückstellungen!$M$4 -> 2024-12-31 | I90: =Rückstellungen!$I$4 -> UB RA Rückstellungen | J90: =Rückstellungen!G95 -> 0 | K90: =IF(Rückstellungen!I95="Haben",50,40) -> 40 | L90: =IF(Rückstellungen!I95="Haben",Rückstellungen!J95*-1,Rückstellungen!J95) -> 0 | M90: =Rückstellungen!L95 ->  | O90: =Rückstellungen!M95 -> 0
A91: =Rückstellungen!$B$3 -> XXXX | C91: =Rückstellungen!$J$5 -> LG | F91: =Rückstellungen!$M$4 -> 2024-12-31 | I91: =Rückstellungen!$I$4 -> UB RA Rückstellungen | J91: =Rückstellungen!G96 -> 0 | K91: =IF(Rückstellungen!I96="Haben",50,40) -> 40 | L91: =IF(Rückstellungen!I96="Haben",Rückstellungen!J96*-1,Rückstellungen!J96) -> 0 | M91: =Rückstellungen!L96 ->  | O91: =Rückstellungen!M96 -> 0
A92: =Rückstellungen!$B$3 -> XXXX | C92: =Rückstellungen!$J$5 -> LG | F92: =Rückstellungen!$M$4 -> 2024-12-31 | I92: =Rückstellungen!$I$4 -> UB RA Rückstellungen | J92: =Rückstellungen!G97 -> 0 | K92: =IF(Rückstellungen!I97="Haben",50,40) -> 40 | L92: =IF(Rückstellungen!I97="Haben",Rückstellungen!J97*-1,Rückstellungen!J97) -> 0 | M92: =Rückstellungen!L97 ->  | O92: =Rückstellungen!M97 -> 0
A93: =Rückstellungen!$B$3 -> XXXX | C93: =Rückstellungen!$J$5 -> LG | F93: =Rückstellungen!$M$4 -> 2024-12-31 | I93: =Rückstellungen!$I$4 -> UB RA Rückstellungen | J93: =Rückstellungen!G98 -> 0 | K93: =IF(Rückstellungen!I98="Haben",50,40) -> 40 | L93: =IF(Rückstellungen!I98="Haben",Rückstellungen!J98*-1,Rückstellungen!J98) -> 0 | M93: =Rückstellungen!L98 ->  | O93: =Rückstellungen!M98 -> 0
A94: =Rückstellungen!$B$3 -> XXXX | C94: =Rückstellungen!$J$5 -> LG | F94: =Rückstellungen!$M$4 -> 2024-12-31 | I94: =Rückstellungen!$I$4 -> UB RA Rückstellungen | J94: =Rückstellungen!G99 -> 0 | K94: =IF(Rückstellungen!I99="Haben",50,40) -> 40 | L94: =IF(Rückstellungen!I99="Haben",Rückstellungen!J99*-1,Rückstellungen!J99) -> 0 | M94: =Rückstellungen!L99 ->  | O94: =Rückstellungen!M99 -> 0
A95: =Rückstellungen!$B$3 -> XXXX | C95: =Rückstellungen!$J$5 -> LG | F95: =Rückstellungen!$M$4 -> 2024-12-31 | I95: =Rückstellungen!$I$4 -> UB RA Rückstellungen | J95: =Rückstellungen!G100 -> 0 | K95: =IF(Rückstellungen!I100="Haben",50,40) -> 40 | L95: =IF(Rückstellungen!I100="Haben",Rückstellungen!J100*-1,Rückstellungen!J100) -> 0 | M95: =Rückstellungen!L100 ->  | O95: =Rückstellungen!M100 -> 0
A96: =Rückstellungen!$B$3 -> XXXX | C96: =Rückstellungen!$J$5 -> LG | F96: =Rückstellungen!$M$4 -> 2024-12-31 | I96: =Rückstellungen!$I$4 -> UB RA Rückstellungen | J96: =Rückstellungen!G101 -> 0 | K96: =IF(Rückstellungen!I101="Haben",50,40) -> 40 | L96: =IF(Rückstellungen!I101="Haben",Rückstellungen!J101*-1,Rückstellungen!J101) -> 0 | M96: =Rückstellungen!L101 ->  | O96: =Rückstellungen!M101 -> 0
A97: =Rückstellungen!$B$3 -> XXXX | C97: =Rückstellungen!$J$5 -> LG | F97: =Rückstellungen!$M$4 -> 2024-12-31 | I97: =Rückstellungen!$I$4 -> UB RA Rückstellungen | J97: =Rückstellungen!G102 -> 0 | K97: =IF(Rückstellungen!I102="Haben",50,40) -> 40 | L97: =IF(Rückstellungen!I102="Haben",Rückstellungen!J102*-1,Rückstellungen!J102) -> 0 | M97: =Rückstellungen!L102 ->  | O97: =Rückstellungen!M102 -> 0
A98: =Rückstellungen!$B$3 -> XXXX | C98: =Rückstellungen!$J$5 -> LG | F98: =Rückstellungen!$M$4 -> 2024-12-31 | I98: =Rückstellungen!$I$4 -> UB RA Rückstellungen | J98: =Rückstellungen!G103 -> 0 | K98: =IF(Rückstellungen!I103="Haben",50,40) -> 40 | L98: =IF(Rückstellungen!I103="Haben",Rückstellungen!J103*-1,Rückstellungen!J103) -> 0 | M98: =Rückstellungen!L103 ->  | O98: =Rückstellungen!M103 -> 0
A99: =Rückstellungen!$B$3 -> XXXX | C99: =Rückstellungen!$J$5 -> LG | F99: =Rückstellungen!$M$4 -> 2024-12-31 | I99: =Rückstellungen!$I$4 -> UB RA Rückstellungen | J99: =Rückstellungen!G104 -> 0 | K99: =IF(Rückstellungen!I104="Haben",50,40) -> 40 | L99: =IF(Rückstellungen!I104="Haben",Rückstellungen!J104*-1,Rückstellungen!J104) -> 0 | M99: =Rückstellungen!L104 ->  | O99: =Rückstellungen!M104 -> 0
A100: =Rückstellungen!$B$3 -> XXXX | C100: =Rückstellungen!$J$5 -> LG | F100: =Rückstellungen!$M$4 -> 2024-12-31 | I100: =Rückstellungen!$I$4 -> UB RA Rückstellungen | J100: =Rückstellungen!G105 -> 0 | K100: =IF(Rückstellungen!I105="Haben",50,40) -> 40 | L100: =IF(Rückstellungen!I105="Haben",Rückstellungen!J105*-1,Rückstellungen!J105) -> 0 | M100: =Rückstellungen!L105 ->  | O100: =Rückstellungen!M105 -> 0
A101: =Rückstellungen!$B$3 -> XXXX | C101: =Rückstellungen!$J$5 -> LG | F101: =Rückstellungen!$M$4 -> 2024-12-31 | I101: =Rückstellungen!$I$4 -> UB RA Rückstellungen | J101: =Rückstellungen!G106 -> 0 | K101: =IF(Rückstellungen!I106="Haben",50,40) -> 40 | L101: =IF(Rückstellungen!I106="Haben",Rückstellungen!J106*-1,Rückstellungen!J106) -> 0 | M101: =Rückstellungen!L106 ->  | O101: =Rückstellungen!M106 -> 0
A102: =Rückstellungen!$B$3 -> XXXX | C102: =Rückstellungen!$J$5 -> LG | F102: =Rückstellungen!$M$4 -> 2024-12-31 | I102: =Rückstellungen!$I$4 -> UB RA Rückstellungen | J102: =Rückstellungen!G107 -> 0 | K102: =IF(Rückstellungen!I107="Haben",50,40) -> 40 | L102: =IF(Rückstellungen!I107="Haben",Rückstellungen!J107*-1,Rückstellungen!J107) -> 0 | M102: =Rückstellungen!L107 ->  | O102: =Rückstellungen!M107 -> 0
A103: =Rückstellungen!$B$3 -> XXXX | C103: =Rückstellungen!$J$5 -> LG | F103: =Rückstellungen!$M$4 -> 2024-12-31 | I103: =Rückstellungen!$I$4 -> UB RA Rückstellungen | J103: =Rückstellungen!O7 -> 817500 | K103: =IF(Rückstellungen!Q7="Haben",50,40) -> 50 | L103: =IF(Rückstellungen!Q7="Haben",Rückstellungen!R7*-1,Rückstellungen!R7) -> 181200 | M103: =Rückstellungen!T7 -> UB RA Jubiläum | O103: =Rückstellungen!U7 -> 10000
A104: =Rückstellungen!$B$3 -> XXXX | C104: =Rückstellungen!$J$5 -> LG | F104: =Rückstellungen!$M$4 -> 2024-12-31 | I104: =Rückstellungen!$I$4 -> UB RA Rückstellungen | J104: =Rückstellungen!O8 -> 817500 | K104: =IF(Rückstellungen!Q8="Haben",50,40) -> 50 | L104: =IF(Rückstellungen!Q8="Haben",Rückstellungen!R8*-1,Rückstellungen!R8) -> 20700 | M104: =Rückstellungen!T8 -> UB RA Jubiläum | O104: =Rückstellungen!U8 -> 22000
A105: =Rückstellungen!$B$3 -> XXXX | C105: =Rückstellungen!$J$5 -> LG | F105: =Rückstellungen!$M$4 -> 2024-12-31 | I105: =Rückstellungen!$I$4 -> UB RA Rückstellungen | J105: =Rückstellungen!O9 -> 817500 | K105: =IF(Rückstellungen!Q9="Haben",50,40) -> 50 | L105: =IF(Rückstellungen!Q9="Haben",Rückstellungen!R9*-1,Rückstellungen!R9) -> 132100 | M105: =Rückstellungen!T9 -> UB RA Jubiläum | O105: =Rückstellungen!U9 -> 30000
A106: =Rückstellungen!$B$3 -> XXXX | C106: =Rückstellungen!$J$5 -> LG | F106: =Rückstellungen!$M$4 -> 2024-12-31 | I106: =Rückstellungen!$I$4 -> UB RA Rückstellungen | J106: =Rückstellungen!O10 -> 817500 | K106: =IF(Rückstellungen!Q10="Haben",50,40) -> 50 | L106: =IF(Rückstellungen!Q10="Haben",Rückstellungen!R10*-1,Rückstellungen!R10) -> 20100 | M106: =Rückstellungen!T10 -> UB RA Jubiläum | O106: =Rückstellungen!U10 -> 163100
A107: =Rückstellungen!$B$3 -> XXXX | C107: =Rückstellungen!$J$5 -> LG | F107: =Rückstellungen!$M$4 -> 2024-12-31 | I107: =Rückstellungen!$I$4 -> UB RA Rückstellungen | J107: =Rückstellungen!O11 -> 817500 | K107: =IF(Rückstellungen!Q11="Haben",50,40) -> 50 | L107: =IF(Rückstellungen!Q11="Haben",Rückstellungen!R11*-1,Rückstellungen!R11) -> 10440.81 | M107: =Rückstellungen!T11 -> UB RA Jubiläum | O107: =Rückstellungen!U11 -> 211100
A108: =Rückstellungen!$B$3 -> XXXX | C108: =Rückstellungen!$J$5 -> LG | F108: =Rückstellungen!$M$4 -> 2024-12-31 | I108: =Rückstellungen!$I$4 -> UB RA Rückstellungen | J108: =Rückstellungen!O12 -> 817500 | K108: =IF(Rückstellungen!Q12="Haben",50,40) -> 50 | L108: =IF(Rückstellungen!Q12="Haben",Rückstellungen!R12*-1,Rückstellungen!R12) -> 8959.19 | M108: =Rückstellungen!T12 -> UB RA Jubiläum | O108: =Rückstellungen!U12 -> 211110
A109: =Rückstellungen!$B$3 -> XXXX | C109: =Rückstellungen!$J$5 -> LG | F109: =Rückstellungen!$M$4 -> 2024-12-31 | I109: =Rückstellungen!$I$4 -> UB RA Rückstellungen | J109: =Rückstellungen!O13 -> 592000 | K109: =IF(Rückstellungen!Q13="Haben",50,40) -> 40 | L109: =IF(Rückstellungen!Q13="Haben",Rückstellungen!R13*-1,Rückstellungen!R13) -> 3299.78 | M109: =Rückstellungen!T13 -> UB RA Jubiläum | O109: =Rückstellungen!U13 -> 211300
A110: =Rückstellungen!$B$3 -> XXXX | C110: =Rückstellungen!$J$5 -> LG | F110: =Rückstellungen!$M$4 -> 2024-12-31 | I110: =Rückstellungen!$I$4 -> UB RA Rückstellungen | J110: =Rückstellungen!O14 -> 817500 | K110: =IF(Rückstellungen!Q14="Haben",50,40) -> 50 | L110: =IF(Rückstellungen!Q14="Haben",Rückstellungen!R14*-1,Rückstellungen!R14) -> 3299.78 | M110: =Rückstellungen!T14 -> UB RA Jubiläum | O110: =Rückstellungen!U14 -> 211310
A111: =Rückstellungen!$B$3 -> XXXX | C111: =Rückstellungen!$J$5 -> LG | F111: =Rückstellungen!$M$4 -> 2024-12-31 | I111: =Rückstellungen!$I$4 -> UB RA Rückstellungen | J111: =Rückstellungen!O15 -> 817500 | K111: =IF(Rückstellungen!Q15="Haben",50,40) -> 50 | L111: =IF(Rückstellungen!Q15="Haben",Rückstellungen!R15*-1,Rückstellungen!R15) -> 12507.28 | M111: =Rückstellungen!T15 -> UB RA Jubiläum | O111: =Rückstellungen!U15 -> 211400
A112: =Rückstellungen!$B$3 -> XXXX | C112: =Rückstellungen!$J$5 -> LG | F112: =Rückstellungen!$M$4 -> 2024-12-31 | I112: =Rückstellungen!$I$4 -> UB RA Rückstellungen | J112: =Rückstellungen!O16 -> 817500 | K112: =IF(Rückstellungen!Q16="Haben",50,40) -> 50 | L112: =IF(Rückstellungen!Q16="Haben",Rückstellungen!R16*-1,Rückstellungen!R16) -> 2092.72 | M112: =Rückstellungen!T16 -> UB RA Jubiläum | O112: =Rückstellungen!U16 -> 211410
A113: =Rückstellungen!$B$3 -> XXXX | C113: =Rückstellungen!$J$5 -> LG | F113: =Rückstellungen!$M$4 -> 2024-12-31 | I113: =Rückstellungen!$I$4 -> UB RA Rückstellungen | J113: =Rückstellungen!O17 ->  | K113: =IF(Rückstellungen!Q17="Haben",50,40) -> 50 | L113: =IF(Rückstellungen!Q17="Haben",Rückstellungen!R17*-1,Rückstellungen!R17) -> 0 | M113: =Rückstellungen!T17 ->  | O113: =Rückstellungen!U17 -> 0
A114: =Rückstellungen!$B$3 -> XXXX | C114: =Rückstellungen!$J$5 -> LG | F114: =Rückstellungen!$M$4 -> 2024-12-31 | I114: =Rückstellungen!$I$4 -> UB RA Rückstellungen | J114: =Rückstellungen!O18 ->  | K114: =IF(Rückstellungen!Q18="Haben",50,40) -> 50 | L114: =IF(Rückstellungen!Q18="Haben",Rückstellungen!R18*-1,Rückstellungen!R18) -> 0 | M114: =Rückstellungen!T18 ->  | O114: =Rückstellungen!U18 -> 0
A115: =Rückstellungen!$B$3 -> XXXX | C115: =Rückstellungen!$J$5 -> LG | F115: =Rückstellungen!$M$4 -> 2024-12-31 | I115: =Rückstellungen!$I$4 -> UB RA Rückstellungen | J115: =Rückstellungen!O19 ->  | K115: =IF(Rückstellungen!Q19="Haben",50,40) -> 50 | L115: =IF(Rückstellungen!Q19="Haben",Rückstellungen!R19*-1,Rückstellungen!R19) -> 0 | M115: =Rückstellungen!T19 ->  | O115: =Rückstellungen!U19 -> 0
A116: =Rückstellungen!$B$3 -> XXXX | C116: =Rückstellungen!$J$5 -> LG | F116: =Rückstellungen!$M$4 -> 2024-12-31 | I116: =Rückstellungen!$I$4 -> UB RA Rückstellungen | J116: =Rückstellungen!O20 ->  | K116: =IF(Rückstellungen!Q20="Haben",50,40) -> 50 | L116: =IF(Rückstellungen!Q20="Haben",Rückstellungen!R20*-1,Rückstellungen!R20) -> 0 | M116: =Rückstellungen!T20 ->  | O116: =Rückstellungen!U20 -> 0
A117: =Rückstellungen!$B$3 -> XXXX | C117: =Rückstellungen!$J$5 -> LG | F117: =Rückstellungen!$M$4 -> 2024-12-31 | I117: =Rückstellungen!$I$4 -> UB RA Rückstellungen | J117: =Rückstellungen!O21 ->  | K117: =IF(Rückstellungen!Q21="Haben",50,40) -> 50 | L117: =IF(Rückstellungen!Q21="Haben",Rückstellungen!R21*-1,Rückstellungen!R21) -> 0 | M117: =Rückstellungen!T21 ->  | O117: =Rückstellungen!U21 -> 0
A118: =Rückstellungen!$B$3 -> XXXX | C118: =Rückstellungen!$J$5 -> LG | F118: =Rückstellungen!$M$4 -> 2024-12-31 | I118: =Rückstellungen!$I$4 -> UB RA Rückstellungen | J118: =Rückstellungen!O22 ->  | K118: =IF(Rückstellungen!Q22="Haben",50,40) -> 50 | L118: =IF(Rückstellungen!Q22="Haben",Rückstellungen!R22*-1,Rückstellungen!R22) -> 0 | M118: =Rückstellungen!T22 ->  | O118: =Rückstellungen!U22 -> 0
A119: =Rückstellungen!$B$3 -> XXXX | C119: =Rückstellungen!$J$5 -> LG | F119: =Rückstellungen!$M$4 -> 2024-12-31 | I119: =Rückstellungen!$I$4 -> UB RA Rückstellungen | J119: =Rückstellungen!O23 ->  | K119: =IF(Rückstellungen!Q23="Haben",50,40) -> 50 | L119: =IF(Rückstellungen!Q23="Haben",Rückstellungen!R23*-1,Rückstellungen!R23) -> 0 | M119: =Rückstellungen!T23 ->  | O119: =Rückstellungen!U23 -> 0
A120: =Rückstellungen!$B$3 -> XXXX | C120: =Rückstellungen!$J$5 -> LG | F120: =Rückstellungen!$M$4 -> 2024-12-31 | I120: =Rückstellungen!$I$4 -> UB RA Rückstellungen | J120: =Rückstellungen!O24 ->  | K120: =IF(Rückstellungen!Q24="Haben",50,40) -> 50 | L120: =IF(Rückstellungen!Q24="Haben",Rückstellungen!R24*-1,Rückstellungen!R24) -> 0 | M120: =Rückstellungen!T24 ->  | O120: =Rückstellungen!U24 -> 0
A121: =Rückstellungen!$B$3 -> XXXX | C121: =Rückstellungen!$J$5 -> LG | F121: =Rückstellungen!$M$4 -> 2024-12-31 | I121: =Rückstellungen!$I$4 -> UB RA Rückstellungen | J121: =Rückstellungen!O25 ->  | K121: =IF(Rückstellungen!Q25="Haben",50,40) -> 50 | L121: =IF(Rückstellungen!Q25="Haben",Rückstellungen!R25*-1,Rückstellungen!R25) -> 0 | M121: =Rückstellungen!T25 ->  | O121: =Rückstellungen!U25 -> 0
A122: =Rückstellungen!$B$3 -> XXXX | C122: =Rückstellungen!$J$5 -> LG | F122: =Rückstellungen!$M$4 -> 2024-12-31 | I122: =Rückstellungen!$I$4 -> UB RA Rückstellungen | J122: =Rückstellungen!O26 ->  | K122: =IF(Rückstellungen!Q26="Haben",50,40) -> 50 | L122: =IF(Rückstellungen!Q26="Haben",Rückstellungen!R26*-1,Rückstellungen!R26) -> 0 | M122: =Rückstellungen!T26 ->  | O122: =Rückstellungen!U26 -> 0
A123: =Rückstellungen!$B$3 -> XXXX | C123: =Rückstellungen!$J$5 -> LG | F123: =Rückstellungen!$M$4 -> 2024-12-31 | I123: =Rückstellungen!$I$4 -> UB RA Rückstellungen | J123: =Rückstellungen!O27 ->  | K123: =IF(Rückstellungen!Q27="Haben",50,40) -> 50 | L123: =IF(Rückstellungen!Q27="Haben",Rückstellungen!R27*-1,Rückstellungen!R27) -> 0 | M123: =Rückstellungen!T27 ->  | O123: =Rückstellungen!U27 -> 0
A124: =Rückstellungen!$B$3 -> XXXX | C124: =Rückstellungen!$J$5 -> LG | F124: =Rückstellungen!$M$4 -> 2024-12-31 | I124: =Rückstellungen!$I$4 -> UB RA Rückstellungen | J124: =Rückstellungen!O28 ->  | K124: =IF(Rückstellungen!Q28="Haben",50,40) -> 50 | L124: =IF(Rückstellungen!Q28="Haben",Rückstellungen!R28*-1,Rückstellungen!R28) -> 0 | M124: =Rückstellungen!T28 ->  | O124: =Rückstellungen!U28 -> 0
A125: =Rückstellungen!$B$3 -> XXXX | C125: =Rückstellungen!$J$5 -> LG | F125: =Rückstellungen!$M$4 -> 2024-12-31 | I125: =Rückstellungen!$I$4 -> UB RA Rückstellungen | J125: =Rückstellungen!O29 ->  | K125: =IF(Rückstellungen!Q29="Haben",50,40) -> 50 | L125: =IF(Rückstellungen!Q29="Haben",Rückstellungen!R29*-1,Rückstellungen!R29) -> 0 | M125: =Rückstellungen!T29 ->  | O125: =Rückstellungen!U29 -> 0
A126: =Rückstellungen!$B$3 -> XXXX | C126: =Rückstellungen!$J$5 -> LG | F126: =Rückstellungen!$M$4 -> 2024-12-31 | I126: =Rückstellungen!$I$4 -> UB RA Rückstellungen | J126: =Rückstellungen!O30 ->  | K126: =IF(Rückstellungen!Q30="Haben",50,40) -> 50 | L126: =IF(Rückstellungen!Q30="Haben",Rückstellungen!R30*-1,Rückstellungen!R30) -> 0 | M126: =Rückstellungen!T30 ->  | O126: =Rückstellungen!U30 -> 0
A127: =Rückstellungen!$B$3 -> XXXX | C127: =Rückstellungen!$J$5 -> LG | F127: =Rückstellungen!$M$4 -> 2024-12-31 | I127: =Rückstellungen!$I$4 -> UB RA Rückstellungen | J127: =Rückstellungen!O31 ->  | K127: =IF(Rückstellungen!Q31="Haben",50,40) -> 50 | L127: =IF(Rückstellungen!Q31="Haben",Rückstellungen!R31*-1,Rückstellungen!R31) -> 0 | M127: =Rückstellungen!T31 ->  | O127: =Rückstellungen!U31 -> 0
A128: =Rückstellungen!$B$3 -> XXXX | C128: =Rückstellungen!$J$5 -> LG | F128: =Rückstellungen!$M$4 -> 2024-12-31 | I128: =Rückstellungen!$I$4 -> UB RA Rückstellungen | J128: =Rückstellungen!O32 ->  | K128: =IF(Rückstellungen!Q32="Haben",50,40) -> 50 | L128: =IF(Rückstellungen!Q32="Haben",Rückstellungen!R32*-1,Rückstellungen!R32) -> 0 | M128: =Rückstellungen!T32 ->  | O128: =Rückstellungen!U32 -> 0
A129: =Rückstellungen!$B$3 -> XXXX | C129: =Rückstellungen!$J$5 -> LG | F129: =Rückstellungen!$M$4 -> 2024-12-31 | I129: =Rückstellungen!$I$4 -> UB RA Rückstellungen | J129: =Rückstellungen!O33 ->  | K129: =IF(Rückstellungen!Q33="Haben",50,40) -> 50 | L129: =IF(Rückstellungen!Q33="Haben",Rückstellungen!R33*-1,Rückstellungen!R33) -> 0 | M129: =Rückstellungen!T33 ->  | O129: =Rückstellungen!U33 -> 0
A130: =Rückstellungen!$B$3 -> XXXX | C130: =Rückstellungen!$J$5 -> LG | F130: =Rückstellungen!$M$4 -> 2024-12-31 | I130: =Rückstellungen!$I$4 -> UB RA Rückstellungen | J130: =Rückstellungen!O34 ->  | K130: =IF(Rückstellungen!Q34="Haben",50,40) -> 50 | L130: =IF(Rückstellungen!Q34="Haben",Rückstellungen!R34*-1,Rückstellungen!R34) -> 0 | M130: =Rückstellungen!T34 ->  | O130: =Rückstellungen!U34 -> 0
A131: =Rückstellungen!$B$3 -> XXXX | C131: =Rückstellungen!$J$5 -> LG | F131: =Rückstellungen!$M$4 -> 2024-12-31 | I131: =Rückstellungen!$I$4 -> UB RA Rückstellungen | J131: =Rückstellungen!O35 ->  | K131: =IF(Rückstellungen!Q35="Haben",50,40) -> 50 | L131: =IF(Rückstellungen!Q35="Haben",Rückstellungen!R35*-1,Rückstellungen!R35) -> 0 | M131: =Rückstellungen!T35 ->  | O131: =Rückstellungen!U35 -> 0
A132: =Rückstellungen!$B$3 -> XXXX | C132: =Rückstellungen!$J$5 -> LG | F132: =Rückstellungen!$M$4 -> 2024-12-31 | I132: =Rückstellungen!$I$4 -> UB RA Rückstellungen | J132: =Rückstellungen!O36 ->  | K132: =IF(Rückstellungen!Q36="Haben",50,40) -> 50 | L132: =IF(Rückstellungen!Q36="Haben",Rückstellungen!R36*-1,Rückstellungen!R36) -> 0 | M132: =Rückstellungen!T36 ->  | O132: =Rückstellungen!U36 -> 0
A133: =Rückstellungen!$B$3 -> XXXX | C133: =Rückstellungen!$J$5 -> LG | F133: =Rückstellungen!$M$4 -> 2024-12-31 | I133: =Rückstellungen!$I$4 -> UB RA Rückstellungen | J133: =Rückstellungen!O37 ->  | K133: =IF(Rückstellungen!Q37="Haben",50,40) -> 50 | L133: =IF(Rückstellungen!Q37="Haben",Rückstellungen!R37*-1,Rückstellungen!R37) -> 0 | M133: =Rückstellungen!T37 ->  | O133: =Rückstellungen!U37 -> 0
A134: =Rückstellungen!$B$3 -> XXXX | C134: =Rückstellungen!$J$5 -> LG | F134: =Rückstellungen!$M$4 -> 2024-12-31 | I134: =Rückstellungen!$I$4 -> UB RA Rückstellungen | J134: =Rückstellungen!O38 ->  | K134: =IF(Rückstellungen!Q38="Haben",50,40) -> 50 | L134: =IF(Rückstellungen!Q38="Haben",Rückstellungen!R38*-1,Rückstellungen!R38) -> 0 | M134: =Rückstellungen!T38 ->  | O134: =Rückstellungen!U38 -> 0
A135: =Rückstellungen!$B$3 -> XXXX | C135: =Rückstellungen!$J$5 -> LG | F135: =Rückstellungen!$M$4 -> 2024-12-31 | I135: =Rückstellungen!$I$4 -> UB RA Rückstellungen | J135: =Rückstellungen!O39 ->  | K135: =IF(Rückstellungen!Q39="Haben",50,40) -> 50 | L135: =IF(Rückstellungen!Q39="Haben",Rückstellungen!R39*-1,Rückstellungen!R39) -> 0 | M135: =Rückstellungen!T39 ->  | O135: =Rückstellungen!U39 -> 0
A136: =Rückstellungen!$B$3 -> XXXX | C136: =Rückstellungen!$J$5 -> LG | F136: =Rückstellungen!$M$4 -> 2024-12-31 | I136: =Rückstellungen!$I$4 -> UB RA Rückstellungen | J136: =Rückstellungen!O40 ->  | K136: =IF(Rückstellungen!Q40="Haben",50,40) -> 50 | L136: =IF(Rückstellungen!Q40="Haben",Rückstellungen!R40*-1,Rückstellungen!R40) -> 0 | M136: =Rückstellungen!T40 ->  | O136: =Rückstellungen!U40 -> 0
A137: =Rückstellungen!$B$3 -> XXXX | C137: =Rückstellungen!$J$5 -> LG | F137: =Rückstellungen!$M$4 -> 2024-12-31 | I137: =Rückstellungen!$I$4 -> UB RA Rückstellungen | J137: =Rückstellungen!O41 ->  | K137: =IF(Rückstellungen!Q41="Haben",50,40) -> 50 | L137: =IF(Rückstellungen!Q41="Haben",Rückstellungen!R41*-1,Rückstellungen!R41) -> 0 | M137: =Rückstellungen!T41 ->  | O137: =Rückstellungen!U41 -> 0
A138: =Rückstellungen!$B$3 -> XXXX | C138: =Rückstellungen!$J$5 -> LG | F138: =Rückstellungen!$M$4 -> 2024-12-31 | I138: =Rückstellungen!$I$4 -> UB RA Rückstellungen | J138: =Rückstellungen!O42 ->  | K138: =IF(Rückstellungen!Q42="Haben",50,40) -> 50 | L138: =IF(Rückstellungen!Q42="Haben",Rückstellungen!R42*-1,Rückstellungen!R42) -> 0 | M138: =Rückstellungen!T42 ->  | O138: =Rückstellungen!U42 -> 0
A139: =Rückstellungen!$B$3 -> XXXX | C139: =Rückstellungen!$J$5 -> LG | F139: =Rückstellungen!$M$4 -> 2024-12-31 | I139: =Rückstellungen!$I$4 -> UB RA Rückstellungen | J139: =Rückstellungen!O43 ->  | K139: =IF(Rückstellungen!Q43="Haben",50,40) -> 50 | L139: =IF(Rückstellungen!Q43="Haben",Rückstellungen!R43*-1,Rückstellungen!R43) -> 0 | M139: =Rückstellungen!T43 ->  | O139: =Rückstellungen!U43 -> 0
A140: =Rückstellungen!$B$3 -> XXXX | C140: =Rückstellungen!$J$5 -> LG | F140: =Rückstellungen!$M$4 -> 2024-12-31 | I140: =Rückstellungen!$I$4 -> UB RA Rückstellungen | J140: =Rückstellungen!O44 ->  | K140: =IF(Rückstellungen!Q44="Haben",50,40) -> 50 | L140: =IF(Rückstellungen!Q44="Haben",Rückstellungen!R44*-1,Rückstellungen!R44) -> 0 | M140: =Rückstellungen!T44 ->  | O140: =Rückstellungen!U44 -> 0
A141: =Rückstellungen!$B$3 -> XXXX | C141: =Rückstellungen!$J$5 -> LG | F141: =Rückstellungen!$M$4 -> 2024-12-31 | I141: =Rückstellungen!$I$4 -> UB RA Rückstellungen | J141: =Rückstellungen!O45 ->  | K141: =IF(Rückstellungen!Q45="Haben",50,40) -> 50 | L141: =IF(Rückstellungen!Q45="Haben",Rückstellungen!R45*-1,Rückstellungen!R45) -> 0 | M141: =Rückstellungen!T45 ->  | O141: =Rückstellungen!U45 -> 0
A142: =Rückstellungen!$B$3 -> XXXX | C142: =Rückstellungen!$J$5 -> LG | F142: =Rückstellungen!$M$4 -> 2024-12-31 | I142: =Rückstellungen!$I$4 -> UB RA Rückstellungen | J142: =Rückstellungen!O46 ->  | K142: =IF(Rückstellungen!Q46="Haben",50,40) -> 50 | L142: =IF(Rückstellungen!Q46="Haben",Rückstellungen!R46*-1,Rückstellungen!R46) -> 0 | M142: =Rückstellungen!T46 ->  | O142: =Rückstellungen!U46 -> 0
A143: =Rückstellungen!$B$3 -> XXXX | C143: =Rückstellungen!$J$5 -> LG | F143: =Rückstellungen!$M$4 -> 2024-12-31 | I143: =Rückstellungen!$I$4 -> UB RA Rückstellungen | J143: =Rückstellungen!O47 ->  | K143: =IF(Rückstellungen!Q47="Haben",50,40) -> 50 | L143: =IF(Rückstellungen!Q47="Haben",Rückstellungen!R47*-1,Rückstellungen!R47) -> 0 | M143: =Rückstellungen!T47 ->  | O143: =Rückstellungen!U47 -> 0
A144: =Rückstellungen!$B$3 -> XXXX | C144: =Rückstellungen!$J$5 -> LG | F144: =Rückstellungen!$M$4 -> 2024-12-31 | I144: =Rückstellungen!$I$4 -> UB RA Rückstellungen | J144: =Rückstellungen!O48 ->  | K144: =IF(Rückstellungen!Q48="Haben",50,40) -> 50 | L144: =IF(Rückstellungen!Q48="Haben",Rückstellungen!R48*-1,Rückstellungen!R48) -> 0 | M144: =Rückstellungen!T48 ->  | O144: =Rückstellungen!U48 -> 0
A145: =Rückstellungen!$B$3 -> XXXX | C145: =Rückstellungen!$J$5 -> LG | F145: =Rückstellungen!$M$4 -> 2024-12-31 | I145: =Rückstellungen!$I$4 -> UB RA Rückstellungen | J145: =Rückstellungen!O49 ->  | K145: =IF(Rückstellungen!Q49="Haben",50,40) -> 50 | L145: =IF(Rückstellungen!Q49="Haben",Rückstellungen!R49*-1,Rückstellungen!R49) -> 0 | M145: =Rückstellungen!T49 ->  | O145: =Rückstellungen!U49 -> 0
A146: =Rückstellungen!$B$3 -> XXXX | C146: =Rückstellungen!$J$5 -> LG | F146: =Rückstellungen!$M$4 -> 2024-12-31 | I146: =Rückstellungen!$I$4 -> UB RA Rückstellungen | J146: =Rückstellungen!O50 ->  | K146: =IF(Rückstellungen!Q50="Haben",50,40) -> 50 | L146: =IF(Rückstellungen!Q50="Haben",Rückstellungen!R50*-1,Rückstellungen!R50) -> 0 | M146: =Rückstellungen!T50 ->  | O146: =Rückstellungen!U50 -> 0
A147: =Rückstellungen!$B$3 -> XXXX | C147: =Rückstellungen!$J$5 -> LG | F147: =Rückstellungen!$M$4 -> 2024-12-31 | I147: =Rückstellungen!$I$4 -> UB RA Rückstellungen | J147: =Rückstellungen!O51 ->  | K147: =IF(Rückstellungen!Q51="Haben",50,40) -> 50 | L147: =IF(Rückstellungen!Q51="Haben",Rückstellungen!R51*-1,Rückstellungen!R51) -> 0 | M147: =Rückstellungen!T51 ->  | O147: =Rückstellungen!U51 -> 0
A148: =Rückstellungen!$B$3 -> XXXX | C148: =Rückstellungen!$J$5 -> LG | F148: =Rückstellungen!$M$4 -> 2024-12-31 | I148: =Rückstellungen!$I$4 -> UB RA Rückstellungen | J148: =Rückstellungen!O52 ->  | K148: =IF(Rückstellungen!Q52="Haben",50,40) -> 50 | L148: =IF(Rückstellungen!Q52="Haben",Rückstellungen!R52*-1,Rückstellungen!R52) -> 0 | M148: =Rückstellungen!T52 ->  | O148: =Rückstellungen!U52 -> 0
A149: =Rückstellungen!$B$3 -> XXXX | C149: =Rückstellungen!$J$5 -> LG | F149: =Rückstellungen!$M$4 -> 2024-12-31 | I149: =Rückstellungen!$I$4 -> UB RA Rückstellungen | J149: =Rückstellungen!O53 ->  | K149: =IF(Rückstellungen!Q53="Haben",50,40) -> 50 | L149: =IF(Rückstellungen!Q53="Haben",Rückstellungen!R53*-1,Rückstellungen!R53) -> 0 | M149: =Rückstellungen!T53 ->  | O149: =Rückstellungen!U53 -> 0
A150: =Rückstellungen!$B$3 -> XXXX | C150: =Rückstellungen!$J$5 -> LG | F150: =Rückstellungen!$M$4 -> 2024-12-31 | I150: =Rückstellungen!$I$4 -> UB RA Rückstellungen | J150: =Rückstellungen!O54 ->  | K150: =IF(Rückstellungen!Q54="Haben",50,40) -> 50 | L150: =IF(Rückstellungen!Q54="Haben",Rückstellungen!R54*-1,Rückstellungen!R54) -> 0 | M150: =Rückstellungen!T54 ->  | O150: =Rückstellungen!U54 -> 0
A151: =Rückstellungen!$B$3 -> XXXX | C151: =Rückstellungen!$J$5 -> LG | F151: =Rückstellungen!$M$4 -> 2024-12-31 | I151: =Rückstellungen!$I$4 -> UB RA Rückstellungen | J151: =Rückstellungen!O55 ->  | K151: =IF(Rückstellungen!Q55="Haben",50,40) -> 50 | L151: =IF(Rückstellungen!Q55="Haben",Rückstellungen!R55*-1,Rückstellungen!R55) -> 0 | M151: =Rückstellungen!T55 ->  | O151: =Rückstellungen!U55 -> 0
A152: =Rückstellungen!$B$3 -> XXXX | C152: =Rückstellungen!$J$5 -> LG | F152: =Rückstellungen!$M$4 -> 2024-12-31 | I152: =Rückstellungen!$I$4 -> UB RA Rückstellungen | J152: =Rückstellungen!O56 ->  | K152: =IF(Rückstellungen!Q56="Haben",50,40) -> 50 | L152: =IF(Rückstellungen!Q56="Haben",Rückstellungen!R56*-1,Rückstellungen!R56) -> 0 | M152: =Rückstellungen!T56 ->  | O152: =Rückstellungen!U56 -> 0
A153: =Rückstellungen!$B$3 -> XXXX | C153: =Rückstellungen!$J$5 -> LG | F153: =Rückstellungen!$M$4 -> 2024-12-31 | I153: =Rückstellungen!$I$4 -> UB RA Rückstellungen | J153: =Rückstellungen!O57 ->  | K153: =IF(Rückstellungen!Q57="Haben",50,40) -> 50 | L153: =IF(Rückstellungen!Q57="Haben",Rückstellungen!R57*-1,Rückstellungen!R57) -> 0 | M153: =Rückstellungen!T57 ->  | O153: =Rückstellungen!U57 -> 0
A154: =Rückstellungen!$B$3 -> XXXX | C154: =Rückstellungen!$J$5 -> LG | F154: =Rückstellungen!$M$4 -> 2024-12-31 | I154: =Rückstellungen!$I$4 -> UB RA Rückstellungen | J154: =Rückstellungen!O58 ->  | K154: =IF(Rückstellungen!Q58="Haben",50,40) -> 50 | L154: =IF(Rückstellungen!Q58="Haben",Rückstellungen!R58*-1,Rückstellungen!R58) -> 0 | M154: =Rückstellungen!T58 ->  | O154: =Rückstellungen!U58 -> 0
A155: =Rückstellungen!$B$3 -> XXXX | C155: =Rückstellungen!$J$5 -> LG | F155: =Rückstellungen!$M$4 -> 2024-12-31 | I155: =Rückstellungen!$I$4 -> UB RA Rückstellungen | J155: =Rückstellungen!O59 ->  | K155: =IF(Rückstellungen!Q59="Haben",50,40) -> 50 | L155: =IF(Rückstellungen!Q59="Haben",Rückstellungen!R59*-1,Rückstellungen!R59) -> 0 | M155: =Rückstellungen!T59 ->  | O155: =Rückstellungen!U59 -> 0
A156: =Rückstellungen!$B$3 -> XXXX | C156: =Rückstellungen!$J$5 -> LG | F156: =Rückstellungen!$M$4 -> 2024-12-31 | I156: =Rückstellungen!$I$4 -> UB RA Rückstellungen | J156: =Rückstellungen!O60 ->  | K156: =IF(Rückstellungen!Q60="Haben",50,40) -> 50 | L156: =IF(Rückstellungen!Q60="Haben",Rückstellungen!R60*-1,Rückstellungen!R60) -> 0 | M156: =Rückstellungen!T60 ->  | O156: =Rückstellungen!U60 -> 0
A157: =Rückstellungen!$B$3 -> XXXX | C157: =Rückstellungen!$J$5 -> LG | F157: =Rückstellungen!$M$4 -> 2024-12-31 | I157: =Rückstellungen!$I$4 -> UB RA Rückstellungen | J157: =Rückstellungen!O61 ->  | K157: =IF(Rückstellungen!Q61="Haben",50,40) -> 50 | L157: =IF(Rückstellungen!Q61="Haben",Rückstellungen!R61*-1,Rückstellungen!R61) -> 0 | M157: =Rückstellungen!T61 ->  | O157: =Rückstellungen!U61 -> 0
A158: =Rückstellungen!$B$3 -> XXXX | C158: =Rückstellungen!$J$5 -> LG | F158: =Rückstellungen!$M$4 -> 2024-12-31 | I158: =Rückstellungen!$I$4 -> UB RA Rückstellungen | J158: =Rückstellungen!O62 ->  | K158: =IF(Rückstellungen!Q62="Haben",50,40) -> 50 | L158: =IF(Rückstellungen!Q62="Haben",Rückstellungen!R62*-1,Rückstellungen!R62) -> 0 | M158: =Rückstellungen!T62 ->  | O158: =Rückstellungen!U62 -> 0
A159: =Rückstellungen!$B$3 -> XXXX | C159: =Rückstellungen!$J$5 -> LG | F159: =Rückstellungen!$M$4 -> 2024-12-31 | I159: =Rückstellungen!$I$4 -> UB RA Rückstellungen | J159: =Rückstellungen!O63 ->  | K159: =IF(Rückstellungen!Q63="Haben",50,40) -> 50 | L159: =IF(Rückstellungen!Q63="Haben",Rückstellungen!R63*-1,Rückstellungen!R63) -> 0 | M159: =Rückstellungen!T63 ->  | O159: =Rückstellungen!U63 -> 0
A160: =Rückstellungen!$B$3 -> XXXX | C160: =Rückstellungen!$J$5 -> LG | F160: =Rückstellungen!$M$4 -> 2024-12-31 | I160: =Rückstellungen!$I$4 -> UB RA Rückstellungen | J160: =Rückstellungen!O64 ->  | K160: =IF(Rückstellungen!Q64="Haben",50,40) -> 50 | L160: =IF(Rückstellungen!Q64="Haben",Rückstellungen!R64*-1,Rückstellungen!R64) -> 0 | M160: =Rückstellungen!T64 ->  | O160: =Rückstellungen!U64 -> 0
A161: =Rückstellungen!$B$3 -> XXXX | C161: =Rückstellungen!$J$5 -> LG | F161: =Rückstellungen!$M$4 -> 2024-12-31 | I161: =Rückstellungen!$I$4 -> UB RA Rückstellungen | J161: =Rückstellungen!O65 ->  | K161: =IF(Rückstellungen!Q65="Haben",50,40) -> 50 | L161: =IF(Rückstellungen!Q65="Haben",Rückstellungen!R65*-1,Rückstellungen!R65) -> 0 | M161: =Rückstellungen!T65 ->  | O161: =Rückstellungen!U65 -> 0
A162: =Rückstellungen!$B$3 -> XXXX | C162: =Rückstellungen!$J$5 -> LG | F162: =Rückstellungen!$M$4 -> 2024-12-31 | I162: =Rückstellungen!$I$4 -> UB RA Rückstellungen | J162: =Rückstellungen!O66 ->  | K162: =IF(Rückstellungen!Q66="Haben",50,40) -> 50 | L162: =IF(Rückstellungen!Q66="Haben",Rückstellungen!R66*-1,Rückstellungen!R66) -> 0 | M162: =Rückstellungen!T66 ->  | O162: =Rückstellungen!U66 -> 0
A163: =Rückstellungen!$B$3 -> XXXX | C163: =Rückstellungen!$J$5 -> LG | F163: =Rückstellungen!$M$4 -> 2024-12-31 | I163: =Rückstellungen!$I$4 -> UB RA Rückstellungen | J163: =Rückstellungen!O67 ->  | K163: =IF(Rückstellungen!Q67="Haben",50,40) -> 50 | L163: =IF(Rückstellungen!Q67="Haben",Rückstellungen!R67*-1,Rückstellungen!R67) -> 0 | M163: =Rückstellungen!T67 ->  | O163: =Rückstellungen!U67 -> 0
A164: =Rückstellungen!$B$3 -> XXXX | C164: =Rückstellungen!$J$5 -> LG | F164: =Rückstellungen!$M$4 -> 2024-12-31 | I164: =Rückstellungen!$I$4 -> UB RA Rückstellungen | J164: =Rückstellungen!O68 ->  | K164: =IF(Rückstellungen!Q68="Haben",50,40) -> 50 | L164: =IF(Rückstellungen!Q68="Haben",Rückstellungen!R68*-1,Rückstellungen!R68) -> 0 | M164: =Rückstellungen!T68 ->  | O164: =Rückstellungen!U68 -> 0
A165: =Rückstellungen!$B$3 -> XXXX | C165: =Rückstellungen!$J$5 -> LG | F165: =Rückstellungen!$M$4 -> 2024-12-31 | I165: =Rückstellungen!$I$4 -> UB RA Rückstellungen | J165: =Rückstellungen!O69 ->  | K165: =IF(Rückstellungen!Q69="Haben",50,40) -> 50 | L165: =IF(Rückstellungen!Q69="Haben",Rückstellungen!R69*-1,Rückstellungen!R69) -> 0 | M165: =Rückstellungen!T69 ->  | O165: =Rückstellungen!U69 -> 0
A166: =Rückstellungen!$B$3 -> XXXX | C166: =Rückstellungen!$J$5 -> LG | F166: =Rückstellungen!$M$4 -> 2024-12-31 | I166: =Rückstellungen!$I$4 -> UB RA Rückstellungen | J166: =Rückstellungen!O70 ->  | K166: =IF(Rückstellungen!Q70="Haben",50,40) -> 50 | L166: =IF(Rückstellungen!Q70="Haben",Rückstellungen!R70*-1,Rückstellungen!R70) -> 0 | M166: =Rückstellungen!T70 ->  | O166: =Rückstellungen!U70 -> 0
A167: =Rückstellungen!$B$3 -> XXXX | C167: =Rückstellungen!$J$5 -> LG | F167: =Rückstellungen!$M$4 -> 2024-12-31 | I167: =Rückstellungen!$I$4 -> UB RA Rückstellungen | J167: =Rückstellungen!O71 ->  | K167: =IF(Rückstellungen!Q71="Haben",50,40) -> 50 | L167: =IF(Rückstellungen!Q71="Haben",Rückstellungen!R71*-1,Rückstellungen!R71) -> 0 | M167: =Rückstellungen!T71 ->  | O167: =Rückstellungen!U71 -> 0
A168: =Rückstellungen!$B$3 -> XXXX | C168: =Rückstellungen!$J$5 -> LG | F168: =Rückstellungen!$M$4 -> 2024-12-31 | I168: =Rückstellungen!$I$4 -> UB RA Rückstellungen | J168: =Rückstellungen!O72 ->  | K168: =IF(Rückstellungen!Q72="Haben",50,40) -> 50 | L168: =IF(Rückstellungen!Q72="Haben",Rückstellungen!R72*-1,Rückstellungen!R72) -> 0 | M168: =Rückstellungen!T72 ->  | O168: =Rückstellungen!U72 -> 0
A169: =Rückstellungen!$B$3 -> XXXX | C169: =Rückstellungen!$J$5 -> LG | F169: =Rückstellungen!$M$4 -> 2024-12-31 | I169: =Rückstellungen!$I$4 -> UB RA Rückstellungen | J169: =Rückstellungen!O73 ->  | K169: =IF(Rückstellungen!Q73="Haben",50,40) -> 50 | L169: =IF(Rückstellungen!Q73="Haben",Rückstellungen!R73*-1,Rückstellungen!R73) -> 0 | M169: =Rückstellungen!T73 ->  | O169: =Rückstellungen!U73 -> 0
A170: =Rückstellungen!$B$3 -> XXXX | C170: =Rückstellungen!$J$5 -> LG | F170: =Rückstellungen!$M$4 -> 2024-12-31 | I170: =Rückstellungen!$I$4 -> UB RA Rückstellungen | J170: =Rückstellungen!O74 ->  | K170: =IF(Rückstellungen!Q74="Haben",50,40) -> 50 | L170: =IF(Rückstellungen!Q74="Haben",Rückstellungen!R74*-1,Rückstellungen!R74) -> 0 | M170: =Rückstellungen!T74 ->  | O170: =Rückstellungen!U74 -> 0
A171: =Rückstellungen!$B$3 -> XXXX | C171: =Rückstellungen!$J$5 -> LG | F171: =Rückstellungen!$M$4 -> 2024-12-31 | I171: =Rückstellungen!$I$4 -> UB RA Rückstellungen | J171: =Rückstellungen!O75 ->  | K171: =IF(Rückstellungen!Q75="Haben",50,40) -> 50 | L171: =IF(Rückstellungen!Q75="Haben",Rückstellungen!R75*-1,Rückstellungen!R75) -> 0 | M171: =Rückstellungen!T75 ->  | O171: =Rückstellungen!U75 -> 0
A172: =Rückstellungen!$B$3 -> XXXX | C172: =Rückstellungen!$J$5 -> LG | F172: =Rückstellungen!$M$4 -> 2024-12-31 | I172: =Rückstellungen!$I$4 -> UB RA Rückstellungen | J172: =Rückstellungen!O76 ->  | K172: =IF(Rückstellungen!Q76="Haben",50,40) -> 50 | L172: =IF(Rückstellungen!Q76="Haben",Rückstellungen!R76*-1,Rückstellungen!R76) -> 0 | M172: =Rückstellungen!T76 ->  | O172: =Rückstellungen!U76 -> 0
A173: =Rückstellungen!$B$3 -> XXXX | C173: =Rückstellungen!$J$5 -> LG | F173: =Rückstellungen!$M$4 -> 2024-12-31 | I173: =Rückstellungen!$I$4 -> UB RA Rückstellungen | J173: =Rückstellungen!O77 ->  | K173: =IF(Rückstellungen!Q77="Haben",50,40) -> 50 | L173: =IF(Rückstellungen!Q77="Haben",Rückstellungen!R77*-1,Rückstellungen!R77) -> 0 | M173: =Rückstellungen!T77 ->  | O173: =Rückstellungen!U77 -> 0
A174: =Rückstellungen!$B$3 -> XXXX | C174: =Rückstellungen!$J$5 -> LG | F174: =Rückstellungen!$M$4 -> 2024-12-31 | I174: =Rückstellungen!$I$4 -> UB RA Rückstellungen | J174: =Rückstellungen!O78 ->  | K174: =IF(Rückstellungen!Q78="Haben",50,40) -> 50 | L174: =IF(Rückstellungen!Q78="Haben",Rückstellungen!R78*-1,Rückstellungen!R78) -> 0 | M174: =Rückstellungen!T78 ->  | O174: =Rückstellungen!U78 -> 0
A175: =Rückstellungen!$B$3 -> XXXX | C175: =Rückstellungen!$J$5 -> LG | F175: =Rückstellungen!$M$4 -> 2024-12-31 | I175: =Rückstellungen!$I$4 -> UB RA Rückstellungen | J175: =Rückstellungen!O79 ->  | K175: =IF(Rückstellungen!Q79="Haben",50,40) -> 50 | L175: =IF(Rückstellungen!Q79="Haben",Rückstellungen!R79*-1,Rückstellungen!R79) -> 0 | M175: =Rückstellungen!T79 ->  | O175: =Rückstellungen!U79 -> 0
A176: =Rückstellungen!$B$3 -> XXXX | C176: =Rückstellungen!$J$5 -> LG | F176: =Rückstellungen!$M$4 -> 2024-12-31 | I176: =Rückstellungen!$I$4 -> UB RA Rückstellungen | J176: =Rückstellungen!O80 ->  | K176: =IF(Rückstellungen!Q80="Haben",50,40) -> 50 | L176: =IF(Rückstellungen!Q80="Haben",Rückstellungen!R80*-1,Rückstellungen!R80) -> 0 | M176: =Rückstellungen!T80 ->  | O176: =Rückstellungen!U80 -> 0
A177: =Rückstellungen!$B$3 -> XXXX | C177: =Rückstellungen!$J$5 -> LG | F177: =Rückstellungen!$M$4 -> 2024-12-31 | I177: =Rückstellungen!$I$4 -> UB RA Rückstellungen | J177: =Rückstellungen!O81 ->  | K177: =IF(Rückstellungen!Q81="Haben",50,40) -> 50 | L177: =IF(Rückstellungen!Q81="Haben",Rückstellungen!R81*-1,Rückstellungen!R81) -> 0 | M177: =Rückstellungen!T81 ->  | O177: =Rückstellungen!U81 -> 0
A178: =Rückstellungen!$B$3 -> XXXX | C178: =Rückstellungen!$J$5 -> LG | F178: =Rückstellungen!$M$4 -> 2024-12-31 | I178: =Rückstellungen!$I$4 -> UB RA Rückstellungen | J178: =Rückstellungen!O82 ->  | K178: =IF(Rückstellungen!Q82="Haben",50,40) -> 50 | L178: =IF(Rückstellungen!Q82="Haben",Rückstellungen!R82*-1,Rückstellungen!R82) -> 0 | M178: =Rückstellungen!T82 ->  | O178: =Rückstellungen!U82 -> 0
A179: =Rückstellungen!$B$3 -> XXXX | C179: =Rückstellungen!$J$5 -> LG | F179: =Rückstellungen!$M$4 -> 2024-12-31 | I179: =Rückstellungen!$I$4 -> UB RA Rückstellungen | J179: =Rückstellungen!O83 ->  | K179: =IF(Rückstellungen!Q83="Haben",50,40) -> 50 | L179: =IF(Rückstellungen!Q83="Haben",Rückstellungen!R83*-1,Rückstellungen!R83) -> 0 | M179: =Rückstellungen!T83 ->  | O179: =Rückstellungen!U83 -> 0
A180: =Rückstellungen!$B$3 -> XXXX | C180: =Rückstellungen!$J$5 -> LG | F180: =Rückstellungen!$M$4 -> 2024-12-31 | I180: =Rückstellungen!$I$4 -> UB RA Rückstellungen | J180: =Rückstellungen!O84 ->  | K180: =IF(Rückstellungen!Q84="Haben",50,40) -> 50 | L180: =IF(Rückstellungen!Q84="Haben",Rückstellungen!R84*-1,Rückstellungen!R84) -> 0 | M180: =Rückstellungen!T84 ->  | O180: =Rückstellungen!U84 -> 0
A181: =Rückstellungen!$B$3 -> XXXX | C181: =Rückstellungen!$J$5 -> LG | F181: =Rückstellungen!$M$4 -> 2024-12-31 | I181: =Rückstellungen!$I$4 -> UB RA Rückstellungen | J181: =Rückstellungen!O85 ->  | K181: =IF(Rückstellungen!Q85="Haben",50,40) -> 50 | L181: =IF(Rückstellungen!Q85="Haben",Rückstellungen!R85*-1,Rückstellungen!R85) -> 0 | M181: =Rückstellungen!T85 ->  | O181: =Rückstellungen!U85 -> 0
A182: =Rückstellungen!$B$3 -> XXXX | C182: =Rückstellungen!$J$5 -> LG | F182: =Rückstellungen!$M$4 -> 2024-12-31 | I182: =Rückstellungen!$I$4 -> UB RA Rückstellungen | J182: =Rückstellungen!O86 ->  | K182: =IF(Rückstellungen!Q86="Haben",50,40) -> 50 | L182: =IF(Rückstellungen!Q86="Haben",Rückstellungen!R86*-1,Rückstellungen!R86) -> 0 | M182: =Rückstellungen!T86 ->  | O182: =Rückstellungen!U86 -> 0
A183: =Rückstellungen!$B$3 -> XXXX | C183: =Rückstellungen!$J$5 -> LG | F183: =Rückstellungen!$M$4 -> 2024-12-31 | I183: =Rückstellungen!$I$4 -> UB RA Rückstellungen | J183: =Rückstellungen!O87 ->  | K183: =IF(Rückstellungen!Q87="Haben",50,40) -> 50 | L183: =IF(Rückstellungen!Q87="Haben",Rückstellungen!R87*-1,Rückstellungen!R87) -> 0 | M183: =Rückstellungen!T87 ->  | O183: =Rückstellungen!U87 -> 0
A184: =Rückstellungen!$B$3 -> XXXX | C184: =Rückstellungen!$J$5 -> LG | F184: =Rückstellungen!$M$4 -> 2024-12-31 | I184: =Rückstellungen!$I$4 -> UB RA Rückstellungen | J184: =Rückstellungen!O88 ->  | K184: =IF(Rückstellungen!Q88="Haben",50,40) -> 50 | L184: =IF(Rückstellungen!Q88="Haben",Rückstellungen!R88*-1,Rückstellungen!R88) -> 0 | M184: =Rückstellungen!T88 ->  | O184: =Rückstellungen!U88 -> 0
A185: =Rückstellungen!$B$3 -> XXXX | C185: =Rückstellungen!$J$5 -> LG | F185: =Rückstellungen!$M$4 -> 2024-12-31 | I185: =Rückstellungen!$I$4 -> UB RA Rückstellungen | J185: =Rückstellungen!O89 ->  | K185: =IF(Rückstellungen!Q89="Haben",50,40) -> 50 | L185: =IF(Rückstellungen!Q89="Haben",Rückstellungen!R89*-1,Rückstellungen!R89) -> 0 | M185: =Rückstellungen!T89 ->  | O185: =Rückstellungen!U89 -> 0
A186: =Rückstellungen!$B$3 -> XXXX | C186: =Rückstellungen!$J$5 -> LG | F186: =Rückstellungen!$M$4 -> 2024-12-31 | I186: =Rückstellungen!$I$4 -> UB RA Rückstellungen | J186: =Rückstellungen!O90 ->  | K186: =IF(Rückstellungen!Q90="Haben",50,40) -> 50 | L186: =IF(Rückstellungen!Q90="Haben",Rückstellungen!R90*-1,Rückstellungen!R90) -> 0 | M186: =Rückstellungen!T90 ->  | O186: =Rückstellungen!U90 -> 0
A187: =Rückstellungen!$B$3 -> XXXX | C187: =Rückstellungen!$J$5 -> LG | F187: =Rückstellungen!$M$4 -> 2024-12-31 | I187: =Rückstellungen!$I$4 -> UB RA Rückstellungen | J187: =Rückstellungen!O91 ->  | K187: =IF(Rückstellungen!Q91="Haben",50,40) -> 50 | L187: =IF(Rückstellungen!Q91="Haben",Rückstellungen!R91*-1,Rückstellungen!R91) -> 0 | M187: =Rückstellungen!T91 ->  | O187: =Rückstellungen!U91 -> 0
A188: =Rückstellungen!$B$3 -> XXXX | C188: =Rückstellungen!$J$5 -> LG | F188: =Rückstellungen!$M$4 -> 2024-12-31 | I188: =Rückstellungen!$I$4 -> UB RA Rückstellungen | J188: =Rückstellungen!O92 ->  | K188: =IF(Rückstellungen!Q92="Haben",50,40) -> 50 | L188: =IF(Rückstellungen!Q92="Haben",Rückstellungen!R92*-1,Rückstellungen!R92) -> 0 | M188: =Rückstellungen!T92 ->  | O188: =Rückstellungen!U92 -> 0
A189: =Rückstellungen!$B$3 -> XXXX | C189: =Rückstellungen!$J$5 -> LG | F189: =Rückstellungen!$M$4 -> 2024-12-31 | I189: =Rückstellungen!$I$4 -> UB RA Rückstellungen | J189: =Rückstellungen!O93 ->  | K189: =IF(Rückstellungen!Q93="Haben",50,40) -> 50 | L189: =IF(Rückstellungen!Q93="Haben",Rückstellungen!R93*-1,Rückstellungen!R93) -> 0 | M189: =Rückstellungen!T93 ->  | O189: =Rückstellungen!U93 -> 0
A190: =Rückstellungen!$B$3 -> XXXX | C190: =Rückstellungen!$J$5 -> LG | F190: =Rückstellungen!$M$4 -> 2024-12-31 | I190: =Rückstellungen!$I$4 -> UB RA Rückstellungen | J190: =Rückstellungen!O94 ->  | K190: =IF(Rückstellungen!Q94="Haben",50,40) -> 50 | L190: =IF(Rückstellungen!Q94="Haben",Rückstellungen!R94*-1,Rückstellungen!R94) -> 0 | M190: =Rückstellungen!T94 ->  | O190: =Rückstellungen!U94 -> 0
A191: =Rückstellungen!$B$3 -> XXXX | C191: =Rückstellungen!$J$5 -> LG | F191: =Rückstellungen!$M$4 -> 2024-12-31 | I191: =Rückstellungen!$I$4 -> UB RA Rückstellungen | J191: =Rückstellungen!O95 ->  | K191: =IF(Rückstellungen!Q95="Haben",50,40) -> 50 | L191: =IF(Rückstellungen!Q95="Haben",Rückstellungen!R95*-1,Rückstellungen!R95) -> 0 | M191: =Rückstellungen!T95 ->  | O191: =Rückstellungen!U95 -> 0
A192: =Rückstellungen!$B$3 -> XXXX | C192: =Rückstellungen!$J$5 -> LG | F192: =Rückstellungen!$M$4 -> 2024-12-31 | I192: =Rückstellungen!$I$4 -> UB RA Rückstellungen | J192: =Rückstellungen!O96 ->  | K192: =IF(Rückstellungen!Q96="Haben",50,40) -> 50 | L192: =IF(Rückstellungen!Q96="Haben",Rückstellungen!R96*-1,Rückstellungen!R96) -> 0 | M192: =Rückstellungen!T96 ->  | O192: =Rückstellungen!U96 -> 0
A193: =Rückstellungen!$B$3 -> XXXX | C193: =Rückstellungen!$J$5 -> LG | F193: =Rückstellungen!$M$4 -> 2024-12-31 | I193: =Rückstellungen!$I$4 -> UB RA Rückstellungen | J193: =Rückstellungen!O97 ->  | K193: =IF(Rückstellungen!Q97="Haben",50,40) -> 50 | L193: =IF(Rückstellungen!Q97="Haben",Rückstellungen!R97*-1,Rückstellungen!R97) -> 0 | M193: =Rückstellungen!T97 ->  | O193: =Rückstellungen!U97 -> 0
A194: =Rückstellungen!$B$3 -> XXXX | C194: =Rückstellungen!$J$5 -> LG | F194: =Rückstellungen!$M$4 -> 2024-12-31 | I194: =Rückstellungen!$I$4 -> UB RA Rückstellungen | J194: =Rückstellungen!O98 ->  | K194: =IF(Rückstellungen!Q98="Haben",50,40) -> 50 | L194: =IF(Rückstellungen!Q98="Haben",Rückstellungen!R98*-1,Rückstellungen!R98) -> 0 | M194: =Rückstellungen!T98 ->  | O194: =Rückstellungen!U98 -> 0
A195: =Rückstellungen!$B$3 -> XXXX | C195: =Rückstellungen!$J$5 -> LG | F195: =Rückstellungen!$M$4 -> 2024-12-31 | I195: =Rückstellungen!$I$4 -> UB RA Rückstellungen | J195: =Rückstellungen!O99 ->  | K195: =IF(Rückstellungen!Q99="Haben",50,40) -> 50 | L195: =IF(Rückstellungen!Q99="Haben",Rückstellungen!R99*-1,Rückstellungen!R99) -> 0 | M195: =Rückstellungen!T99 ->  | O195: =Rückstellungen!U99 -> 0
A196: =Rückstellungen!$B$3 -> XXXX | C196: =Rückstellungen!$J$5 -> LG | F196: =Rückstellungen!$M$4 -> 2024-12-31 | I196: =Rückstellungen!$I$4 -> UB RA Rückstellungen | J196: =Rückstellungen!O100 ->  | K196: =IF(Rückstellungen!Q100="Haben",50,40) -> 50 | L196: =IF(Rückstellungen!Q100="Haben",Rückstellungen!R100*-1,Rückstellungen!R100) -> 0 | M196: =Rückstellungen!T100 ->  | O196: =Rückstellungen!U100 -> 0
A197: =Rückstellungen!$B$3 -> XXXX | C197: =Rückstellungen!$J$5 -> LG | F197: =Rückstellungen!$M$4 -> 2024-12-31 | I197: =Rückstellungen!$I$4 -> UB RA Rückstellungen | J197: =Rückstellungen!O101 ->  | K197: =IF(Rückstellungen!Q101="Haben",50,40) -> 50 | L197: =IF(Rückstellungen!Q101="Haben",Rückstellungen!R101*-1,Rückstellungen!R101) -> 0 | M197: =Rückstellungen!T101 ->  | O197: =Rückstellungen!U101 -> 0
A198: =Rückstellungen!$B$3 -> XXXX | C198: =Rückstellungen!$J$5 -> LG | F198: =Rückstellungen!$M$4 -> 2024-12-31 | I198: =Rückstellungen!$I$4 -> UB RA Rückstellungen | J198: =Rückstellungen!O102 ->  | K198: =IF(Rückstellungen!Q102="Haben",50,40) -> 50 | L198: =IF(Rückstellungen!Q102="Haben",Rückstellungen!R102*-1,Rückstellungen!R102) -> 0 | M198: =Rückstellungen!T102 ->  | O198: =Rückstellungen!U102 -> 0
A199: =Rückstellungen!$B$3 -> XXXX | C199: =Rückstellungen!$J$5 -> LG | F199: =Rückstellungen!$M$4 -> 2024-12-31 | I199: =Rückstellungen!$I$4 -> UB RA Rückstellungen | J199: =Rückstellungen!O103 ->  | K199: =IF(Rückstellungen!Q103="Haben",50,40) -> 50 | L199: =IF(Rückstellungen!Q103="Haben",Rückstellungen!R103*-1,Rückstellungen!R103) -> 0 | M199: =Rückstellungen!T103 ->  | O199: =Rückstellungen!U103 -> 0
A200: =Rückstellungen!$B$3 -> XXXX | C200: =Rückstellungen!$J$5 -> LG | F200: =Rückstellungen!$M$4 -> 2024-12-31 | I200: =Rückstellungen!$I$4 -> UB RA Rückstellungen | J200: =Rückstellungen!O104 ->  | K200: =IF(Rückstellungen!Q104="Haben",50,40) -> 50 | L200: =IF(Rückstellungen!Q104="Haben",Rückstellungen!R104*-1,Rückstellungen!R104) -> 0 | M200: =Rückstellungen!T104 ->  | O200: =Rückstellungen!U104 -> 0
... 3 more rows

Sheet Datei_für_Flexiblen_Verbucher
A1: Buchungskreis/BUKRS | C1: Belegart/BLART | D1: Steuer rechnen/XMWST | F1: Datum/BUDAT | I1: Belegkopftext/BKTXT | J1: Konto/NEWKO | K1: BS | L1: Betrag/WRBTR | M1: Text/SGTXT | N1: Steuerkennzeichen/MWSKZ | O1: Kostenstelle/KOSTL | P1: Auftrag/AUFNR
A2: T015 | C2: LG | F2: 2022-12-31 | I2: UB RA Rückstellungen | J2: 381000 | K2: 50 | L2: 300 | M2: UB RA Urlaub | O2: 10000
A3: T015 | C3: LG | F3: 2022-12-31 | I3: UB RA Rückstellungen | J3: 381000 | K3: 50 | L3: 100 | M3: UB RA Urlaub | O3: 22000
A4: T015 | C4: LG | F4: 2022-12-31 | I4: UB RA Rückstellungen | J4: 381000 | K4: 40 | L4: 278 | M4: UB RA Urlaub | O4: 25000
A5: T015 | C5: LG | F5: 2022-12-31 | I5: UB RA Rückstellungen | J5: 593000 | K5: 40 | L5: 300 | M5: UB RA Urlaub | O5: 10000
A6: T015 | C6: LG | F6: 2022-12-31 | I6: UB RA Rückstellungen | J6: 593000 | K6: 40 | L6: 100 | M6: UB RA Urlaub | O6: 22000
A7: T015 | C7: LG | F7: 2022-12-31 | I7: UB RA Rückstellungen | J7: 817200 | K7: 50 | L7: 278 | M7: UB RA Urlaub | O7: 25000
